{"text_format":"3","workbook":"xlsx","n_sheets":1,"sheets":["Sheet1"],"not_rendered":{"defined_names":1},"read":"whole","date_system":"1900"}

{"sheet":"Sheet1","index":0,"n_rows":956,"n_cols":9,"rows_kept":956,"merged":[[0,0,0,8],[2,0,57,0],[48,1,51,1],[52,1,57,1],[58,0,63,0],[64,0,67,0],[68,0,70,0],[71,0,75,0],[72,1,73,1],[76,0,80,0],[81,0,83,0],[81,1,83,1],[84,0,91,0],[84,1,85,1],[86,1,88,1],[89,1,91,1],[92,0,99,0],[101,0,102,0],[103,0,111,0],[114,0,151,0],[152,0,154,0],[155,0,160,0],[162,0,171,0],[162,1,171,1],[172,0,177,0],[173,1,174,1],[176,1,177,1],[178,0,180,0],[181,0,182,0],[183,0,216,0],[183,1,188,1],[189,1,195,1],[196,1,203,1],[204,1,205,1],[207,1,209,1],[211,1,214,1],[217,0,225,0],[217,1,219,1],[220,1,223,1],[224,1,225,1],[226,0,235,0],[226,1,228,1],[229,1,230,1],[238,0,243,0],[245,0,257,0],[253,1,254,1],[256,1,257,1],[258,0,260,0],[261,0,284,0],[261,1,266,1],[264,8,266,8],[267,1,272,1],[274,1,283,1],[274,8,277,8],[285,0,286,0],[287,0,289,0],[290,0,325,0],[290,1,296,1],[297,1,307,1],[297,8,307,8],[309,1,314,1],[309,8,314,8],[317,1,319,1],[322,1,323,1],[326,0,331,0],[332,0,337,0],[338,0,352,0],[338,1,347,1],[348,1,349,1],[353,0,370,0],[353,8,365,8],[371,0,411,0],[412,0,431,0],[412,1,414,1],[415,1,419,1],[420,1,423,1],[424,1,430,1],[432,0,452,0],[442,1,443,1],[447,1,449,1],[450,1,452,1],[453,0,464,0],[455,1,456,1],[455,8,464,8],[457,1,462,1],[463,1,464,1],[465,0,479,0],[476,8,479,8],[480,0,487,0],[480,1,481,1],[483,1,486,1],[488,0,501,0],[502,0,515,0],[516,0,519,0],[520,0,539,0],[540,0,547,0],[548,0,557,0],[558,0,567,0],[568,0,589,0],[590,0,621,0],[622,0,626,0],[627,0,634,0],[635,0,639,0],[640,0,648,0],[649,0,653,0],[656,0,661,0],[662,0,665,0],[666,0,668,0],[669,0,671,0],[672,0,673,0],[674,0,676,0],[678,0,689,0],[690,0,698,0],[699,0,706,0],[700,1,702,1],[703,1,704,1],[705,1,706,1],[707,0,710,0],[711,0,713,0],[714,0,728,0],[714,1,715,1],[716,1,728,1],[731,0,747,0],[731,1,740,1],[741,1,744,1],[748,0,753,0],[754,0,758,0],[759,0,766,0],[759,1,761,1],[762,1,763,1],[764,1,766,1],[768,0,785,0],[786,0,794,0],[795,0,817,0],[818,0,860,0],[861,0,874,0],[875,0,878,0],[879,0,885,0],[886,0,891,0],[892,0,896,0],[897,0,906,0],[907,0,927,0],[928,0,938,0],[939,0,942,0],[943,0,953,0]]}
["江西省2018年卫生专业技术人员招聘岗位补招计划申报表"]
["招聘县、乡镇全称","招聘单位全称","招聘岗位","岗位条件","科目代码","招聘人数","面试人数","补招人数","备注"]
["南昌市市直","南昌市第一医院","神经内科医师","神经病学专业（100204），全日制研究生学历，硕士学位，年龄在35周岁及以下，取得临床执业医师资格证",1010001006,2,1,{"$f":"F3-G3","v":1}]
[null,"南昌市第一医院","老年医学科医师2","老年医学专业（100203），全日制研究生学历，硕士学位，年龄在35周岁及以下，取得临床执业医师资格证",1010001009,1,0,1]
[null,"南昌市第一医院","老年医学科医师3","神经病学专业（100204），全日制研究生学历，硕士学位，年龄在35周岁及以下，取得临床执业医师资格证",1010001010,1,0,1]
[null,"南昌市第一医院","康复科医师1","康复医学与理疗学专业（100215），全日制研究生学历，硕士学位，年龄在35周岁及以下，取得临床执业医师资格证",1010001011,1,0,1]
[null,"南昌市第一医院","康复科医师3","外科学专业（100210）烧伤方向，全日制研究生学历，硕士学位，年龄在35周岁及以下，取得临床执业医师资格证",1010001013,1,0,1]
[null,"南昌市第一医院","皮肤科医师","皮肤病与性病学专业（100206）皮肤病理或皮肤激光方向，全日制研究生学历，硕士学位，年龄在35周岁及以下，取得临床执业医师资格证",1010001015,1,0,1]
[null,"南昌市第一医院","北院急创中心医师1","外科学专业（100210），全日制研究生学历，硕士学位，年龄在35周岁及以下，取得临床执业医师资格证",1010001018,1,0,1]
[null,"南昌市第一医院","心胸外科医师","外科学专业（100210）心胸外科方向，全日制研究生学历，硕士学位，年龄在35周岁及以下，取得临床执业医师资格证",1010001021,1,0,1]
[null,"南昌市第一医院","影像科医师","影像医学与核医学专业（100207），全日制研究生学历，硕士学位，年龄在35周岁及以下，取得临床执业医师资格证",1010001025,2,1,1]
[null,"南昌市第一医院","输血科医师","内科学专业（100201）血液病学方向，全日制研究生学历，硕士学位，年龄在35周岁及以下，取得临床执业医师资格证",1010001026,1,0,1]
[null,"南昌市第一医院","超声科医师1","影像医学与核医学专业（100207）超声诊断方向，全日制研究生学历，硕士学位，年龄在35周岁及以下，取得临床执业医师资格证，取得主治医师资格证",1010001027,1,0,1]
[null,"南昌市第一医院","眼科实习研究员","眼科学专业（100212），全日制研究生学历，硕士学位，年龄在35周岁及以下，取得临床执业医师资格证",1010001030,2,1,1]
[null,"南昌市第一医院","血管外科医师","外科学专业（100210）血管外科方向，全日制研究生学历，硕士学位，年龄在35周岁及以下，取得临床执业医师资格证",1010001031,2,0,2]
[null,"南昌市第一医院","耳鼻喉科医师","耳鼻咽喉科学专业（100213），全日制研究生学历，硕士学位，年龄在35周岁及以下，取得临床执业医师资格证",1010001033,2,1,1]
[null,"南昌市第一医院","急诊科医师","外科学专业（100210），全日制研究生学历，硕士学位，年龄在35周岁及以下，取得临床执业医师资格证",1010001034,1,0,1]
[null,"南昌市第一医院","儿科医师1","儿科学专业（100202），全日制研究生学历，硕士学位，年龄在35周岁及以下，取得临床执业医师资格证",1010001035,1,0,1]
[null,"南昌市第一医院","口腔科医师","口腔临床医学专业（100302），全日制研究生学历，硕士学位，年龄在30周岁及以下，取得口腔执业医师资格证",2010001042,1,0,1]
[null,"江西省中西医结合医院","肛肠科医生","中医外科学专业（100507），全日制研究生学历，硕士学位，年龄在35周岁及以下，具有执业医师资格证",4010002002,1,0,1]
[null,"江西省中西医结合医院","急诊科医生1","外科学专业（100210），全日制研究生学历，硕士学位，年龄在30周岁及以下，具有执业医师资格证",1010002007,1,0,1]
[null,"江西省中西医结合医院","口腔科医生","口腔医学类专业（1003），全日制研究生学历，硕士学位，年龄在35周岁及以下，具有执业医师资格证",2010002009,2,1,1]
[null,"江西省中西医结合医院","普通外科医生","外科学专业（100210），全日制研究生学历，硕士学位，年龄在35周岁及以下，具有执业医师资格证",1010002010,1,0,1]
[null,"江西省中西医结合医院","皮肤科医生1","中医外科专业（100507），全日制研究生学历，硕士学位，年龄在35周岁及以下，具有执业医师资格证",4010002012,1,0,1]
[null,"江西省中西医结合医院","皮肤科医生2","中医外科专业（100507），全日制研究生学历，硕士学位，年龄在35周岁及以下，具有执业医师资格证",4010002013,1,0,1]
[null,"江西省中西医结合医院","消化内科医生","中医内科学专业（100506），全日制研究生学历，硕士学位，年龄在30周岁及以下，具有执业医师资格证",4010002019,1,0,1]
[null,"江西省中西医结合医院","心内科医生2","中西医结合临床专业（100602），全日制研究生学历，硕士学位，年龄在35周岁及以下，具有执业医师资格证",5010002025,1,0,1]
[null,"江西省中西医结合医院","康复科医生","针灸推拿学专业（100512），全日制研究生学历，硕士学位，年龄在35周岁及以下，具有执业医师资格证",4010002026,1,0,1]
[null,"南昌市第三医院","妇产科医生","妇产科学专业（100211），全日制研究生学历，硕士学位，年龄35周岁及以下，取得临床执业医师资格证",1010003001,6,1,5]
[null,"南昌市第三医院","儿科、新生儿科医生","儿科学专业(100202)，全日制研究生学历，硕士学位，年龄35周岁及以下，取得临床执业医师资格证",1010003002,6,0,6]
[null,"南昌市第三医院","影像医生","影像医学与核医学专业（100207），全日制研究生学历，硕士学位，年龄35周岁及以下，取得临床执业医师资格证",1010003005,2,1,1]
[null,"南昌市洪都中医院","彩超科诊断医生1","医学影像学专业（100203TK）、全日制大学本科学历、学士学位、年龄在30周岁以下、具有临床执业医师资格证、具有住院医师规范化培训合格证。",1010005003,1,0,1]
[null,"南昌市洪都中医院","神经内科医生","内科学专业（神经内科专业方向）（100201）、全日制研究生学历、硕士学位、年龄在35周岁以下、具有临床执业医师资格证。",1010005006,1,0,1]
[null,"南昌市洪都中医院","呼吸内科医生","内科学专业（呼吸科专业方向）（100201）、全日制研究生学历、硕士学位、年龄在30周岁以下、具有临床执业医师资格证。",1010005008,1,0,1]
[null,"南昌市洪都中医院","风湿病科医生","内科学专业（风湿病科专业方向）（100201）、全日制研究生学历、硕士学位、年龄在30周岁以下、具有临床执业医师资格证。",1010005009,1,0,1]
[null,"南昌市洪都中医院","关节科医生","外科学专业（关节专业方向）（100210）、全日制研究生学历、硕士学位、年龄在35周岁以下、具有临床执业医师资格证。",1010005013,1,0,1]
[null,"南昌市洪都中医院","神经外科医生","外科学专业（神经外科专业方向）（100210）、全日制研究生学历、硕士学位、年龄在35周岁以下、具有临床执业医师资格证。",1010005015,1,0,1]
[null,"南昌市洪都中医院","康复科医生1","康复医学与理疗学专业（100215）、全日制研究生学历、硕士学位、年龄在30周岁以下、具有临床执业医师资格证。",1010005017,1,0,1]
[null,"南昌市洪都中医院","康复科医生2","针灸推拿学专业（100512）、全日制研究生学历，硕士学位，年龄在35周岁以下、具有中医执业医师资格证。",4010005018,2,0,2]
[null,"南昌市洪都中医院","软伤科医生","针灸推拿学专业（100512），全日制研究生学历，硕士学位，年龄在35周岁以下、具有中医执业医师资格证。",4010005019,1,0,1]
[null,"南昌市洪都中医院","眼科医生","中医五官科学专业（眼科方向）（100511）、全日制研究生学历、硕士学位、年龄在35周岁以下、具有中医执业医师资格证。",4010005020,1,0,1]
[null,"南昌市洪都中医院","病理科诊断医生","临床医学专业（100201K）、全日制大学本科学历、学士学位、年龄35周岁以下、具有临床执业医师资格证、具有住院医师规范化培训合格证。",1010005025,1,0,1]
[null,"南昌市洪都中医院","病理科技师","医学检验技术专业（101001）、全日制大学本科学历、学士学位，年龄在35周岁以下、具有病理技术师专业技术资格证。",8010005026,1,0,1]
[null,"南昌市洪都中医院","检验科医生"," 临床检验诊断学专业（100208）、全日制研究生学历，硕士学位，年龄在30周岁以下、具有临床执业医师资格。",1010005027,1,0,1]
[null,"南昌市洪都中医院","检验科技师","医学检验技术专业（101001）、全日制大学本科学历，学士学位，年龄在35周岁以下、具有副主任检验技师专业技术资格证。",8010005028,1,0,1]
[null,"南昌市洪都中医院","临床护士1","护理学专业（100209）、全日制研究生学历、硕士学位，年龄在35周岁以下、具有护士执业资格证。",9010005032,2,0,2]
[null,"江西省精神病院","内科医师","内科学专业（心血管内科方向）（100201），全日制研究生学历，硕士学位，年龄35周岁及以下，具有主治医师资格证",1010006003,1,0,1]
[null,"江西省精神病院","影像医师","医学影像学专业（100203TK），全日制大学本科学历，学士学位，年龄35周岁及以下，具有执业医师资格证",1010006006,3,0,3]
[null,"江西省皮病专科医病　　　　","皮肤外科　　　临床医生","外科学专业(100210)；全日制研究生学历、硕士学位；年龄30周岁以下；具有执业医师资格证；取得初级专业技术资格证书。",1010007001,1,0,1]
[null,null,"皮肤科临床医生5","中西医结合临床专业（100602）；全日制研究生学历、硕士学位；年龄35周岁以下；具有执业医师资格证；取得中级专业技术资格证书。",5010007006,1,0,1]
[null,null,"病理科医生","病理学与病理生理学专业（100104），全日制研究生学历、硕士学位；年龄35周岁以下；具有执业医师资格证；取得初级及以上专业技术资格证书。",1010007009,1,0,1]
[null,null,"医学影像科医生","医学影像学专业（100203TK）、放射医学专业（100206TK）；全日制大学本科学历、学士学位；年龄35周岁以下；具有执业医师资格证；初级及以上专业技术资格证书。",1010007010,1,0,1]
[null,"南昌市第九医院","消化内科医师","内科学专业（100201）消化内科方向，全日制研究生学历，硕士学位，年龄35周岁及以下,取得执业医师资格证",1010004003,1,0,1]
[null,null,"肾内科医师","内科学专业（100201）肾内科方向，全日制研究生学历，硕士学位，年龄35周岁及以下,取得执业医师资格证",1010004004,1,0,1]
[null,null,"骨外科医师","外科学专业（100210）骨外科方向，全日制研究生学历，硕士学位，年龄35周岁及以下,取得执业医师资格证",1010004005,1,0,1]
[null,null,"普外科医师","外科学专业（100210）普外，肝胆外科方向，全日制研究生学历，硕士学位，年龄35周岁及以下,取得执业医师资格证",1010004006,1,0,1]
[null,null,"呼吸内科医师","内科学专业（100201）呼吸内科方向，全日制研究生学历，硕士学位，年龄35周岁及以下,取得执业医师资格证",1010004007,1,0,1]
[null,null,"妇产科医师","妇产科学专业（100211），全日制研究生学历，硕士学位，年龄35周岁及以下,取得执业医师资格证",1010004009,1,0,1]
["南昌市南昌县","南昌县南新乡中心卫生院","临床医生","临床医学（100201K），全日制大学本科学历，学士学位，年龄35周岁以下。",1012101001,1,0,1]
[null,"南昌县南新乡中心卫生院","影像科医生","医学影像学（100203TK）、医学影像技术（101003），全日制大学本科学历，学士学位，年龄35周岁以下。",8012101002,1,0,1]
[null,"南昌县蒋巷镇中心卫生院","外科医生","临床医学（100201K），全日制大学本科学历，学士学位，年龄35周岁以下。",1012102002,1,0,1]
[null,"南昌县蒋巷镇中心卫生院","影像科医生","医学影像学（100203TK）、医学影像技术（101003），全日制大学本科学历，学士学位，年龄35周岁以下。",8012102003,1,0,1]
[null,"南昌县塘南镇中心卫生院","外科医生","临床医学（100201K），全日制大学本科学历，学士学位，年龄35周岁以下。",1012103001,2,0,2]
[null,"南昌县幽兰镇中心卫生院","检验科人员","医学检验技术（101001），全日制大学本科学历，学士学位，年龄35周岁以下。",8012106002,1,0,1]
["南昌市安义县","安义县中医院","内科医师","临床医学类专业（1002），全日制大学本科学历，学士学位 ，年龄30周岁及以下","1012302004",1,0,1]
[null,"安义县中医院","妇产科医师","临床医学类专业（1002），全日制大学本科学历，学士学位 ，年龄30周岁及以下 ",1012302006,1,0,1]
[null,"安义县石鼻中心卫生院","中西医结合科医生","临床医学专业（620101k），全日制大专及以上学历，年龄35周岁及以下，取得执业助理医师资格证书",1012308001,1,0,{"$f":"F67-G67","v":1}]
[null,"安义县石鼻中心卫生院","公共卫生与预防医学科医生","预防医学专业（620601k），全日制大专及以上学历，年龄35周岁及以下，取得执业助理医师资格证书",3012308002,1,0,1]
["南昌市西湖区","南昌市西湖区妇幼保健计划生育服务中心","B超医师","医学影像技术专业（101003），全日制大学本科学历、学士学位，年龄35周岁以下，取得执业医师资格证",8010303003,1,0,1]
[null,"南昌市第六医院","放射科医生","医学影像技术专业（620403），全日制大专及以上学历，年龄35周岁以下，取得执业医师资格证",8010305004,1,0,1]
[null,"南昌市西湖区桃花医院","检验科检验师","医学检验技术专业（101001）,全日制大学本科学历，学士学位，年龄35周岁以下,取得临床医学检验技术（师）资格证",8010306002,1,0,1]
["南昌市新建区","南昌市新建区石岗镇卫生院","公共卫生医生","预防医学专业（100401K）、全日制大学本科学历，学士学位、年龄35周岁以下、具有执业医师资格证。",3011202002,1,0,1]
[null,"南昌市新建区石岗镇卫生防疫站","预防医学医生1","预防医学专业（100401K）、全日制大学本科学历，学士学位、年龄35周岁以下、具有执业医师资格证。",3011203001,1,0,1]
[null,null,"预防医学医生2","流行病与卫生统计学专业（100401）、全日制研究生学历，硕士学位、年龄35周岁以下、具有执业医师资格证。",3011203002,1,0,1]
[null,"南昌市新建区联圩镇卫生院","公共卫生医生","预防医学专业（620601K)、全日制大专及以上学历、年龄30周岁以下、具有执业助理医师及以上资格证。",3011205002,1,0,1]
[null,"南昌市新建区铁河乡卫生院","临床医生","临床医学专业（620101K)、全日制大专及以上学历、年龄30周岁以下、具有执业助理医师及以上资格证。",1011210001,1,0,1]
["南昌市红谷滩新区","凤凰洲社区卫生服务中心","临床医生1","临床医学专业（100201K），基础医学专业(100101K)，中西医临床医学专业(100601K)，全日制大学本科学历，学士学位，年龄35周岁及以下，取得执业医师资格证和全科医师资格证",1010601001,2,0,2]
[null,"凤凰洲社区卫生服务中心","影像科医生","医学影像技术专业（620403），全日制大专及以上学历，年龄35周岁及以下，取得影像师资格证",8010601004,1,0,1]
[null,"九龙湖社区卫生服务中心","临床医生","临床医学专业(100201K)，针灸推拿学专业（100502K），全日制大学本科学历，学士学位，年龄35周岁及以下，取得执业医师资格证和全科医师资格证",1010603001,2,0,2]
[null,"九龙湖社区卫生服务中心","影像科医生","医学影像技术专业（620403），全日制大专及以上学历，年龄35周岁及以下，取得影像师资格证",8010603002,1,0,1]
[null,"九龙湖社区卫生服务中心","检验科医生","医学检验技术专业（101001），全日制大学本科学历，学士学位，年龄35周岁及以下，取得检验师资格证",8010603004,1,0,1]
["武宁县","武宁县乡镇卫生院","临床医生2","临床医学专业(100201K)，全日制大学本科学历，学士学位，35周岁及以下。",1042302002,3,0,3]
[null,null,"妇产科医生","临床医学专业(620101K)，全日制大专及以上学历，35周岁及以下。",1042302004,2,0,2]
[null,null,"医学影像诊断医生","医学影像学专业(100203TK)，全日制大学本科学历，学士学位，30周岁及以下。",1042302009,2,0,2]
["修水县","修水县第一人民医院","口腔医生","口腔医学（100301K），全日制大学本科学历，学士学位，35周岁及以下，具有医学类中级职称的学历可放宽到大专及以上学历，年龄放宽至45周岁及以下。",2042401002,1,0,1]
[null,null,"影像","临床医学（100201K）、放射医学（100206TK）专业，全日制大学本科学历，学士学位，35周岁及以下，具有医学类中级职称的学历可放宽到大专及以上学历，年龄放宽至45周岁及以下。",8042401004,1,0,1]
[null,"修水渣津镇中心卫生院（县第一人民医院西院）","临床医生","临床医学专业（100201K），全日制大学本科学历，学士学位，35周岁及以下，具有医学类中级职称的学历可放宽至大专及以上学历，年龄放宽至45周岁及以下。",1042404001,2,0,2]
[null,null,"口腔医生","口腔医学专业（100301K），全日制大学本科学历，学士学位，35周岁及以下，具有医学类中级职称的学历可放宽到大专及以上学历，年龄放宽至45周岁及以下。",2042404004,1,0,1]
[null,null,"B超CT","放射医学（100206TK）、医学影像学（100203TK）、临床医学（100201K）专业，全日制大学本科学历，学士学位，35周岁及以下，具有医学类中级职称的学历可放宽到大专及以上学历，年龄放宽至45周岁及以下。",8042404003,1,0,1]
[null,"修水乡镇卫生院","临床医生2","临床医学专业（620101K），全日制大专及以上学历，35周岁及以下，具有医学类中级职称的学历可放宽到大专及以上学历，年龄放宽至45周岁及以下。",1042405002,13,4,9]
[null,null,"口腔","口腔医学（620102K）、口腔医学技术（620405）专业，全日制大专及以上学历，35周岁及以下，具有医学类中级职称的学历可放宽到大专及以上学历，年龄放宽至45周岁及以下。",2042405006,2,0,2]
[null,null,"康复治疗","中医康复技术（620503）、中医骨伤（620104K）、针炙推拿学（620105K）、康复治疗技术（620501）专业，全日制大专及以上学历，35周岁及以下，具有医学类中级职称的学历可放宽到大专及以上学历，年龄放宽至45周岁及以下。",4042405005,2,0,2]
["永修县","永修县白槎镇中心卫生院","内科医生","临床医学类专业（6201），全日制大专及以上学历，35周岁及以下，具有助理医师资格证书或医师资格证书。",1042505001,1,0,1]
[null,"永修县妇幼保健计划生育服务中心","妇产科医生","临床医学类专业（1002），全日制大学本科学历，学士学位，35周岁及以下。",1042501002,2,0,2]
[null,"永修县柘林镇卫生院","内科医生","临床医学类专业（6201），全日制大专及以上学历，35周岁及以下，具有助理医师资格证书或执业医师资格证书。",1042515001,1,0,1]
[null,"永丰卫生院","内科医生","临床医学类专业（6201），全日制大专及以上学历，35周岁及以下，具有助理医师资格证书或执业医师资格证书。",1042517001,1,0,1]
[null,"永修县燕山卫生院","内科医生","临床医学类专业（6201），全日制大专及以上学历，35周岁及以下，具有助理医师资格证书或执业医师资格证书。",1042519001,1,0,1]
[null,"永修县卫生计生综合监督执法局","公卫医生","公共卫生与预防医学类专业（1004），全日制大学本科学历，学士学位，30周岁及以下。",3042504001,1,0,1]
[null,"永修县滩溪镇中心卫生院","公卫医生","公共卫生与卫生管理类专业（6206），全日制大专及以上学历，35周岁及以下，具有助理医师资格证书或医师资格证书。",3042506001,2,0,2]
[null,"永修县立新乡卫生院","公卫医生","公共卫生与卫生管理类专业（6206），全日制大专及以上学历，35周岁及以下，具有助理医师资格证书或执业医师资格证书。",3042513002,1,0,1]
["湖口县","湖口县人民医院","临床医师","临床医学专业(100201K)，全日制大学本科学历，学士学位，30周岁及以下，具有医师资格证书。",1042901001,4,1,3]
["共青城市","共青城市全国青年创业基地卫生院","医生","临床医学类（1002）专业，全日制大学本科学历，学士学位，35周岁及以下，具有医师资格证书。",1048203001,1,0,1]
[null,"共青城市妇幼保健站","B超室医生","医学影像技术专业（620403），全日制大专及以上学历，35周岁及以下，具有医师资格证书。",8048204001,1,0,1]
["庐山市","庐山市人民医院","放射科医生","医学影像技术（101003）、医学影像学（100203TK）、放射医学（100206TK）专业，全日制大学本科学历，学士学位，30周岁及以下。",1048301002,1,0,1]
[null,"庐山市中医院","放射科医生","医学影像技术（101003）、医学影像学（100203TK）、放射医学（100206TK）专业，全日制大学本科学历，学士学位，30周岁及以下。",1048302002,1,0,1]
[null,"庐山市血吸虫病防治站","放射科医生","医学影像技术（101003）、医学影像学（100203TK）、放射医学（100206TK）专业，全日制大学本科学历，学士学位，30周岁及以下。",1048303002,1,0,1]
[null,"庐山市妇幼保健计划生育服务中心","放射科医生","医学影像技术（101003）、医学影像学（100203TK）、放射医学（100206TK）专业，全日制大学本科学历，学士学位，30周岁及以下。",1048304002,1,0,1]
[null,"庐山市华林镇卫生院","临床医生","临床医学（100201K）、中医学类（1005）、中西医临床医学（100601K）专业，全日制大学本科学历，学士学位，30周岁及以下。",1048306001,1,0,1]
[null,"庐山市蛟塘镇中心卫生院","临床医生","临床医学（100201K）、中医学类（1005）、中西医临床医学（100601K）专业，全日制大学本科学历，学士学位，30周岁及以下。",1048307001,1,0,1]
[null,"庐山市蓼南乡新池卫生院","临床医生","临床医学（100201K）、中医学类（1005）、中西医临床医学（100601K）专业，全日制大学本科学历，学士学位，30周岁及以下。",1048308001,1,0,1]
[null,"庐山市蓼南乡卫生院","临床医生","临床医学（100201K）、中医学类（1005）、中西医临床医学（100601K）专业，全日制大学本科学历，学士学位，30周岁及以下。",1048309001,1,0,1]
[null,"庐山市横塘镇卫生院","临床医生","临床医学（100201K）、中医学类（1005）、中西医临床医学（100601K）专业，全日制大学本科学历，学士学位，30周岁及以下。",1048310001,1,0,1]
["都昌县","都昌县乡镇卫生院","公共医生","公共卫生管理（620602）专业，全日制大专及以上学历，30周岁及以下。",3042801003,4,0,4]
["德安县","德安县乡镇卫生院","中西医医生","中西医临床医学（100601K），全日制大学本科学历，学士学位，30周岁及以下。",5042603003,1,0,1]
["景德镇市","景德镇市第一人民医院","呼吸内科医生","内科学专业(100201)，全日制研究生学历，硕士学位，30周岁及以下，具有临床医师资格证书",1020002002,2,0,2]
[null,"景德镇市第一人民医院","神经内科医生","神经病学专业（100204），全日制研究生学历，硕士学位，30周岁及以下，具有临床医师资格证书",1020002003,2,0,2]
[null,"景德镇市第一人民医院","血液内科医生","内科学专业(100201)，全日制研究生学历，硕士学位，30周岁及以下，具有临床医师资格证书",1020002004,1,0,1]
[null,"景德镇市第一人民医院","烧伤外科医生","临床医学专业（100201K），全日制研究生学历，硕士学位，25周岁及以下，具有临床医师资格证书",1020002005,1,0,1]
[null,"景德镇市第一人民医院","肝胆外科医生","外科学专业(100210)，全日制研究生学历，硕士学位，30周岁及以下，具有临床医师资格证书",1020002006,2,0,2]
[null,"景德镇市第一人民医院","神经外科医生","外科学专业(100210)，全日制研究生学历，硕士学位，30周岁及以下，具有临床医师资格证书",1020002007,1,0,1]
[null,"景德镇市第一人民医院","泌尿外科医生","外科学专业(100210)，全日制研究生学历，硕士学位，30周岁及以下，具有临床医师资格证书",1020002008,1,0,1]
[null,"景德镇市第一人民医院","肾内科医生","内科学专业(100201)，全日制研究生学历，硕士学位，30周岁及以下，具有临床医师资格证书",1020002012,2,1,1]
[null,"景德镇市第一人民医院","放射科医生","放射医学专业（100206TK），全日制大学本科学历，学士学位，25周岁及以下，具有临床医师资格证书",1020002013,1,0,1]
[null,"景德镇市第一人民医院","儿科医生","儿科学专业(100202)，全日制研究生学历，硕士学位，30周岁及以下，具有临床医师资格证书",1020002016,1,0,1]
[null,"景德镇市第一人民医院","病理科医生","病理学与病理生理学专业(100104)，全日制研究生学历，硕士学位，35周岁及以下，具有医学检验和病理专业执业医师执业证书",1020002017,1,0,1]
[null,"景德镇市第二人民医院","呼吸内科医生","内科学专业（100201），全日制研究生学历，硕士学位，30周岁及以下，具有执业医师资格证，并注册为内科医师",1020003002,1,0,1]
[null,"景德镇市第二人民医院","消化内科医生","内科学专业（100201），全日制研究生学历，硕士学位，35周岁及以下，具有执业医师资格证，并注册为内科医师",1020003004,3,2,1]
[null,"景德镇市第二人民医院","骨科医生","外科学专业（100210），全日制研究生学历，硕士学位，35周岁及以下，具有执业医师资格证，并注册为外科医师",1020003005,3,1,2]
[null,"景德镇市第二人民医院","急诊科医生","急诊医学专业（100218），全日制研究生学历，硕士学位，30周岁及以下，具有执业医师资格证",1020003007,1,0,1]
[null,"景德镇市第二人民医院","超声科诊断医生","影像医学与核医学专业（100207），全日制研究生学历，硕士学位，30周岁及以下，具有执业医师资格证",1020003009,1,0,1]
[null,"景德镇市第三人民医院","内分泌科医生","内科学专业（100201），全日制研究生学历，硕士学位，30周岁及以下，具有内科专业执业医师执业证",1020004001,1,0,1]
[null,"景德镇市第三人民医院","骨科医生","外科学专业（100210），全日制研究生学历，硕士学位，30周岁及以下，具有执业医师资格证",1020004002,1,0,1]
[null,"景德镇市第三人民医院","妇产科医生","妇产学专业（100211），全日制研究生学历，硕士学位，30周岁及以下，具有执业医师资格证",1020004003,1,0,1]
[null,"景德镇市第三人民医院","心血管内科医生","临床医学专业（100201K），全日制大学本科学历，学士学位，30周岁及以下，具有内科专业执业医师执业证",1020004005,2,1,1]
[null,"景德镇市第三人民医院","神经内科医生","临床医学专业（100201K），全日制大学本科学历，学士学位，30周岁及以下，具有内科专业执业医师执业证",1020004007,1,0,1]
[null,"景德镇市第三人民医院","肿瘤内科医生","临床医学专业（100201K），全日制大学本科学历，学士学位，30周岁及以下，具有内科专业执业医师执业证",1020004009,1,0,1]
[null,"景德镇市第三人民医院","泌尿外科医生","临床医学专业（100201K），全日制大学本科学历，学士学位，30周岁及以下，具有外科专业执业医师执业证",1020004013,1,0,1]
[null,"景德镇市第三人民医院","妇科医生","临床医学专业（100201K），全日制大学本科学历，学士学位，30周岁及以下，具有妇产专业执业医师执业证",1020004014,2,1,1]
[null,"景德镇市第三人民医院","产科医生","临床医学专业（100201K），全日制大学本科学历，学士学位，30周岁及以下，具有妇产专业执业医师执业证",1020004015,2,0,2]
[null,"景德镇市第三人民医院","儿科医生","临床医学专业（100201K），全日制大学本科学历，学士学位，30周岁及以下，具有儿科专业执业医师执业证",1020004016,2,1,1]
[null,"景德镇市第三人民医院","耳鼻咽喉眼科医生","临床医学专业（100201K），全日制大学本科学历，学士学位，30周岁及以下，具有耳鼻咽喉眼科专业执业医师执业证",1020004017,2,0,2]
[null,"景德镇市第三人民医院","重症医学科医生","临床医学专业（100201K），全日制大学本科学历，学士学位，30周岁及以下，具有内科专业执业医师执业证",1020004018,2,1,1]
[null,"景德镇市第三人民医院","放射CT医生","临床医学（100201K）或医学影像学（100203TK）专业，全日制大学本科学历，学士学位，30周岁及以下，具有执业医师资格证，如已注册须为医学影像与放射治疗专业",1020004020,1,0,1]
[null,"景德镇市第三人民医院","心电图医生","临床医学专业（100201K），全日制大学本科学历，学士学位，30周岁及以下",1020004021,1,0,1]
[null,"景德镇市中医医院","麻醉科医生","麻醉学专业（100202TK），全日制大学本科学历，学士学位，30周岁及以下，具有执业医师资格证书",1020006002,1,0,1]
[null,"景德镇市中医医院","外科医生","临床医学专业（100201K），全日制大学本科学历，学士学位，30周岁及以下，具有执业医师资格证书",1020006003,1,0,1]
[null,"景德镇市中医医院","心内科医生","临床医学专业（100201K），全日制大学本科学历，学士学位，30周岁及以下，具有执业医师资格证书",1020006004,2,0,2]
[null,"景德镇市中医医院","CT/磁共振医生","临床医学专业（100201K），全日制大学本科学历，学士学位，30周岁及以下，具有执业医师资格证书",1020006005,1,0,1]
[null,"景德镇市中医医院","急诊科医生","临床医学专业（100201K），全日制大学本科学历，学士学位，30周岁及以下，具有执业医师资格证书",1020006006,2,0,2]
[null,"景德镇市第五人民医院","内科医生","临床医学专业（620101k），全日制大专及以上学历，35周岁及以下，有执业医生资格证（如已注册，须为内科专业）",1020007001,2,1,1]
[null,"景德镇市第六人民医院","皮肤性病科医生","临床医学专业（100201K），全日制大学本科学历，学士学位，30周岁及以下",1020008001,2,0,2]
[null,"景德镇市第六人民医院","内科医生","临床医学专业（100201K），全日制大学本科学历，学士学位，30周岁及以下",1020008002,1,0,1]
["浮梁县","浮梁县人民医院","外科医师2","临床医学专业（620101K），全日制大专及以上学历，35周岁及以下，具有主治医师资格",1022203003,2,1,1]
[null,"浮梁县人民医院","内科医师1","临床医学专业（620101K），全日制大专及以上学历，35周岁及以下，具有主治医师资格",1022203004,1,0,1]
[null,"浮梁县西湖乡卫生院","医师","临床医学专业（620101K），全日制大专及以上学历，30周岁及以下，大专学历须具有执业助理医师资格",1022208001,1,0,1]
["景德镇市","景德镇市牙病防治所","口腔科医师","口腔临床医学专业（100302），全日制研究生学历，硕士学位，35周岁及以下，具有执业医师资格证",2020013001,1,0,1]
[null,"景德镇市健康教育所","健康教育人员","预防医学专业（100401K），全日制大学本科学历，25周岁及以下",3020012001,1,0,1]
[null,"景德镇市中医医院","骨伤科医生","中医骨伤科学专业（100508），全日制研究生学历，硕士学位，30周岁及以下，具有执业医师资格证书",4020006008,2,0,2]
[null,"景德镇市中医医院","针灸科医生","针灸推拿学专业（100512），全日制研究生学历，硕士学位，30周岁及以下，具有执业医师资格证书",4020006010,1,0,1]
[null,"景德镇市中医医院","急诊科医生","中医内科医学专业（100506），全日制研究生学历，硕士学位，30周岁及以下，具有执业医师资格证书。",4020006012,1,0,1]
[null,"景德镇市疾控中心","医学检验技师","医学检验技术专业（101001），全日制大学本科学历，学士学位，30周岁及以下",8020009002,3,2,1]
["浮梁县","浮梁县兴田乡卫生院","检验师","医学检验技术（620401）专业，全日制大专及以上学历，35周岁及以下，具有检验师资格 ",8022209001,1,0,1]
["萍乡市","萍乡市第二人民医院","外科医师","临床医学专业(100201K)，全日制大学本科学历，学士学位，年龄在30周岁以下",1030001002,6,1,5]
[null,null,"眼科医师","临床医学专业(100201K)，全日制大学本科学历，学士学位，年龄在30周岁以下",1030001003,2,0,2]
[null,null,"耳鼻喉科医师","临床医学专业(100201K)，全日制大学本科学历，学士学位，年龄在30周岁以下",1030001004,2,0,2]
[null,null,"超声科医师","临床医学专业(100201K) 、医学影像学专业(100203TK)，全日制大学本科学历，学士学位，年龄在30周岁以下",1030001006,1,0,1]
[null,null,"放射科医师","临床医学专业(100201K) 或医学影像学专业(100203TK)，全日制大学本科学历，学士学位，年龄在30周岁以下",1030001007,2,0,2]
[null,null,"神经外科医师","外科学专业(100210)，全日制研究生学历，硕士学位，年龄在30周岁以下",1030001011,1,0,1]
[null,null,"骨科医师","外科学专业(100210)，全日制研究生学历，硕士学位，年龄在30周岁以下",1030001012,1,0,1]
[null,null,"肿瘤科医师","肿瘤学专业(100214)，全日制研究生学历，硕士学位，年龄在30周岁以下",1030001013,1,0,1]
[null,null,"检验科技师","医学检验诊断学专业（100208），全日制研究生学历，硕士学位，年龄在30周岁以下",8030001014,1,0,1]
[null,null,"药剂科药师","药剂学专业（100702），全日制研究生学历，硕士学位，年龄在30周岁以下",6030001015,1,0,1]
["安源区","高坑镇中心卫生院","临床医生","临床医学类专业（6201），全日制大专及以上学历，年龄35周岁及以下",1030203001,5,3,2]
[null,"青山镇中心卫生院","临床医生","临床医学类专业（6201），全日制大专及以上学历，年龄35周岁及以下，取得助理医师资格证书",1030204001,3,2,1]
[null,null,"公卫医生","预防医学专业（620601K），全日制大专及以上学历，年龄35周岁及以下，取得助理医师资格证书",3030204004,1,0,1]
[null,"安源镇卫生院","B超医生","医学影像学专业（100203TK），全日制大学本科学历，年龄35周岁及以下，取得助理医师资格证书",1030205004,1,0,1]
[null,"五陂镇卫生院","精神科医生","精神医学专业(100205TK), 全日制大学本科学历，年龄35周岁及以下，取得助理医师资格证书",1030206001,1,0,1]
[null,null,"公卫医生","预防医学专业（620601K），全日制大专及以上学历，年龄35周岁及以下，取得助理医师资格证书",3030206005,1,0,1]
["芦溪县","芦溪镇卫生院","内科医师","临床医学专业（620101K），全日制大专学历，年龄35岁以下，取得执业医师资格证。",1032301001,1,0,1]
[null,"张佳坊乡卫生院","医疗卫生技术人员","医学影像技术（620403），全日制大专学历，年龄35岁以下，取得执业医师资格证。",8032302001,1,0,1]
[null,"长丰乡卫生院","内科医师","临床医学专业（620101K），全日制大专学历，年龄35岁以下，取得执业医师资格证、全科医生培训证。",1032303001,1,0,1]
["武功山风景名胜区","万龙山乡卫生院","内外儿妇科医生","临床医学(620101K)，全日制大学本科学历，学士学位，年龄在35周岁以下，取得医师资格证书",1032401001,1,0,1]
[null,"麻田卫生院","中医科医生","中医学（620103K），全日制大学本科学历，学士学位，年龄在35周岁以下，取得医师资格证书",5032402001,1,0,1]
["湘东区","湘东区人民医院","妇产科医师","妇幼保健医学（100403TK）、临床医学专业（100201K），全日制大学本科学历、学士学位，年龄35周岁以下，取得执业医师资格证。",1031301003,2,1,1]
[null,null,"儿科医师","临床医学专业（100201K），全日制大学本科学历、学士学位，年龄35周岁以下，取得执业医师资格证。",1031301004,2,0,2]
[null,null,"重症医学科医师","临床医学专业（100201K），全日制大学本科学历、学士学位，年龄35周岁以下，取得执业医师资格证。",1031301005,1,0,1]
[null,null,"眼科医师","眼视光医学专业（100204TK）、临床医学专业（100201K），全日制大学本科学历、学士学位，年龄35周岁以下，取得执业医师资格证。",1031301006,1,0,1]
[null,null,"医学影像科医师","医学影像专业（100203TK）、临床医学专业（100201K），全日制大学本科学历、学士学位，年龄35周岁以下，取得执业医师资格证。",1031301008,2,1,1]
[null,null,"康复科医师","临床医学类（100201K），全日制大学本科学历、学士学位，年龄35周岁以下，取得执业医师资格证。",1031301011,1,0,1]
[null,"湘东区中医院","精神科医师","精神医学专业（100205TK），全日制大学本科学历、学士学位，年龄35周岁以下，取得执业医师资格证。",1031302001,2,0,2]
[null,null,"麻醉科医师","麻醉学专业（100202TK），全日制大学本科学历、学士学位，年龄35周岁以下，取得执业医师资格证。",1031302002,2,1,1]
[null,null,"妇产科医师","临床医学专业（100201K），全日制大学本科学历、学士学位，年龄35周岁以下，取得执业医师资格证。",1031302003,1,0,1]
[null,null,"普外科医师","临床医学专业（100201K），全日制大学本科学历、学士学位，年龄35周岁以下，取得执业医师资格证。",1031302004,2,0,2]
[null,null,"泌尿外科医师","临床医学专业（100201K），全日制大学本科学历、学士学位，年龄35周岁以下，取得执业医师资格证。",1031302005,2,0,2]
[null,null,"放射科医师","放射医学专业（100206TK），全日制大学本科学历、学士学位，年龄35周岁以下，取得执业医师资格证。",1031302006,2,0,2]
[null,null,"B超室医师","医学影像专业（100203TK）全日制大学本科学历、学士学位，年龄35周岁以下，取得执业医师资格证。",1031302007,1,0,1]
[null,"湘东区妇幼保健院","乳腺科医师","临床医学专业（100201K），全日制大学本科学历、学士学位，年龄35周岁以下，取得执业医师资格证。",1031303001,1,0,1]
[null,null,"妇产科医师","临床医学专业（100201K），全日制大学本科学历、学士学位，年龄35周岁以下，取得执业医师资格证。",1031303002,6,0,6]
[null,null,"儿科医师","临床医学专业（100201K），全日制大学本科学历、学士学位，年龄35周岁以下，取得执业医师资格证。",1031303003,2,0,2]
[null,null,"B超室医师","医学影像专业（100203TK）全日制大学本科学历、学士学位，年龄35周岁以下，取得执业医师资格证。",1031303004,1,0,1]
[null,null,"儿童保健科医师","预防医学专业（100401K），全日制大学本科学历、学士学位，年龄30周岁以下，取得公共卫生执业医师资格证。",3031303005,1,0,1]
[null,null,"麻醉科医师","麻醉学专业（100202TK），全日制大学本科学历、学士学位，年龄30周岁以下，取得执业医师资格证。",1031303008,1,0,1]
[null,null,"公共卫生科医师","预防医学专业（620601K），全日制大专学历，年龄30周岁以下，取得公共卫生执业医师资格证。",3031303011,2,0,2]
[null,null,"口腔科医师","口腔医学专业（100301K），全日制大学本科学历、学士学位，年龄35周岁以下，取得口腔执业医师资格证。",2031303012,1,0,1]
[null,"湘东区疾控中心","公共卫生科医师","预防医学专业（100401K），全日制大学本科学历、学士学位，年龄35周岁以下，取得公共卫生执业医师资格证。",3031304001,4,1,3]
[null,null,"结防科医师","临床医学专业（620101K），全日制大专学历，年龄30周岁以下，取得执业医师资格证。",1031304002,3,2,1]
[null,"湘东区卫生计生综合监督执法局","公共卫生科医师","预防医学专业（620601K），全日制大专学历，年龄35周岁以下，取得公共卫生执业医师资格证。",3031305001,2,0,2]
[null,"老关镇中心卫生院","内科医师","临床医学专业（620101K），全日制大专学历，年龄35周岁以下，取得执业助理医师资格证。",1031307001,1,0,1]
[null,null,"放射科医师","临床医学专业（620101K），全日制大专学历，年龄35周岁以下，取得执业助理医师资格证。",1031307003,1,0,1]
[null,null,"口腔科医师","口腔医学专业（620102K），全日制大专学历，年龄35周岁以下，取得口腔执业助理医师资格证。",2031307004,1,0,1]
[null,"排上镇中心卫","检验科医师","医学检验技术专业（620401），全日制大专学历，年龄35周岁以下， 取得检验师资格证。",8031308003,1,0,1]
[null,"东桥镇中心卫生院","妇产科医师","临床医学专业（620101K），全日制大专学历，年龄30周岁以下。取得执业助理医师资格证",1031309001,2,0,2]
[null,null,"B超室医师","临床医学专业（620101TK）全日制大专学历，年龄35周岁以下，取得执业助理医师资格证。",1031309002,1,0,1]
[null,null,"外科医师","临床医学专业（620101K），全日制大专学历，年龄35周岁以下，取得执业助理医师资格证。",1031309003,1,0,1]
[null,null,"中医科医师","中医学专业（100501K），全日制大学本科学历、学士学位，年龄30周岁以下，取得中医执业医师资格证。",4031309004,1,0,1]
[null,"下埠镇卫生院","放射科医师","临床医学专业（620101K），全日制大专学历，年龄35周岁以下。",1031311003,1,0,1]
[null,"广寒乡卫生院","卫生院医师","临床医学专业（620101K），全日制大专学历，年龄35周岁以下，取得执业助理医师资格证。",1031315001,1,0,1]
["新余市","新余市人民医院","眼科医生","眼视光医学专业（100204TK），全日制大学本科学历，学士学位，30周岁及以下。",1050001005,1,0,1]
[null,null,"口腔放射技师","口腔医学专业（100301K），全日制大学本科学历，学士学位，30周岁及以下。",2050001007,1,0,1]
[null,null,"输血医生","临床医学专业（100201K），全日制大学本科学历，学士学位，30周岁及以下，具有执业医师资格证。",1050001010,1,0,1]
[null,"新余市中医院","普外科医生","临床医学（100201K）、中西医临床医学（100601K）专业，全日制大学本科学历，学士学位，30周岁及以下。",1050002004,1,0,1]
[null,null,"泌外科医生","临床医学（100201K）、中西医临床医学（100601K）专业，全日制大学本科学历，学士学位，30周岁及以下。",1050002005,2,1,1]
[null,null,"B超医生","临床医学（100201K）、医学影像学（100203TK）专业，全日制大学本科学历，学士学位，30周岁及以下。",1050002008,1,0,1]
[null,null,"心电图医生","临床医学专业（100201K），全日制大学本科学历，学士学位，30周岁及以下。",1050002009,1,0,1]
[null,"新余市妇幼保健院","儿科医生","临床医学（100201K），全日制大学本科学历，年龄35周岁以下，有执业医师证（执业范围：儿科）。",1050003003,2,1,1]
[null,null,"儿童保健科医生","眼视光学（100204TK），全日制大学本科学历，年龄35周岁以下。",1050003004,1,0,1]
["分宜县","分宜县人民医院","临床医师","临床医学专业（100201K）， 全日制大学本科学历，学士学位， 35周岁及以下。",1052101001,10,9,1]
[null,null,"麻醉医师","麻醉学专业（100202TK），全日制大学本科学历，学士学位，35周岁及以下。",1052101002,1,0,1]
[null,null,"影像医师","医学影像学（100203TK）、放射医学专业（100206TK），全日制大学本科学历，学士学位，35周岁及以下。",1052101003,1,0,1]
[null,"分宜县中医院","临床医师","临床医学专业（100201K），全日制大学本科学历，学士学位，35周岁及以下。",1052102001,1,0,1]
[null,null,"中西医结合医生","中西医临床医学专业（100601K)，全日制大学本科学历，学士学位，35周岁及以下。",5052102003,1,0,1]
[null,"分宜县高岚乡卫生院","公共卫生医生","预防医学专业（620601K），全日制大专及以上学历，35周岁及以下。",3052103002,1,0,1]
[null,"分宜县洋江镇卫生院","临床医生","临床医学专业（620101K），全日制大专以上学历， 35周岁及以下。",1052105002,1,0,1]
[null,"分宜县操场乡中心卫生院","临床医生","临床医学专业（620101K），全日制大专及以上学历，35周岁及以下。",1052107001,2,0,2]
[null,"分宜县钤山镇松山卫生院","公共卫生医生","预防医学专业（620601K），全日制大专及以上学历，35周岁及以下。",3052110002,1,0,1]
[null,"分宜县钤山镇大岗山卫生院","临床医师","临床医学专业（620101K），全日制大专及以上学历，30周岁及以下。",1052111001,1,0,1]
["渝水区","新余市渝水区姚圩镇卫生院","中医学医师","中医学（620103k）专业，全日制大专及以上学历，35周岁及以下，2016年及以前毕业生须具备执业助理医师资格。",4050202001,2,1,1]
["新余高新技术产业开发区城东办事处","城东社区卫生服务中心","放射医师","医学影像学（100203TK）、放射医学（100206TK）专业，全日制本科及以上学历，35周岁及以下。",1053001005,1,0,1]
["鹰潭市","鹰潭市人民医院","普外科医生","外科学专业（100210）普外方向,全日制研究生学历，硕士学位，30周岁及以下，具有执业医师资格证",1060001001,1,0,1]
[null,"鹰潭市人民医院","急诊内科医生","内科学专业（100201），全日制研究生学历，硕士学位，30周岁及以下，具有执业医师资格证",1060001003,1,0,1]
[null,"鹰潭市人民医院","核医学科医生","临床医学专业（100201K），全日制大学本科学历，35周岁及以下，具有执业医师资格证",1060001005,1,0,1]
[null,"鹰潭市人民医院铁路分院","麻醉科医生","麻醉学专业（100202TK），全日制大学本科学历，35周岁及以下，具有执业医师资格证",1060002010,2,1,1]
[null,"鹰潭市人民医院铁路分院","放射科诊断医生","医学影像学专业（100203TK），全日制大学本科学历，35周岁及以下，具有执业医师资格证",1060002014,2,0,2]
[null,"鹰潭市急救中心","急救医生","临床医学专业（100201K），全日制大学本科学历，35周岁及以下，具有执业医师资格证",1060005001,5,2,3]
["信江新区","夏埠乡卫生院","医学影像诊断医师","医学影像学专业（100203TK），全日制大学本科学历，35周岁及以下",1060009002,1,0,1]
["贵溪市","贵溪市妇幼保健院","放射科医生","医学影像学专业（100203TK），全日制大学本科学历，30周岁及以下",1068102003,1,0,1]
[null,"贵溪市紧急医学救援中心","医疗科医生","临床医学专业（100201K），全日制大学本科学历，30周岁及以下，",1068104001,4,0,4]
[null,"贵溪市文坊中心卫生院","放射科医生","医学影像学专业（100203TK），全日制大学本科学历，30周岁及以下",1068107001,1,0,1]
[null,"贵溪市周坊中心卫生院","影像科医生","医学影像学专业（100203TK），全日制大学本科学历，35周岁及以下",1068108001,1,0,1]
[null,"贵溪市樟坪畲族卫生院","住院部医生","临床医学专业（100201K），全日制大学本科学历，35周岁及以下",1068109002,1,0,1]
[null,"贵溪市耳口卫生院","妇产科医生","临床医学专业（100201K），全日制大学本科学历，35周岁及以下，具有执业医师资格证",1068110001,1,0,1]
[null,"贵溪市雷溪卫生院","防保科医生","预防医学专业（100401K），全日制大学本科学历，30周岁及以下",3068111002,1,0,1]
[null,"贵溪市流口卫生院","预防医学医生","预防医学专业（100401K），全日制大学本科学历，30周岁及以下",3068112001,1,0,1]
[null,"贵溪市泗沥卫生院","防保科医生","预防医学专业（100401K），全日制大学本科学历，30周岁及以下",3068113002,1,0,1]
[null,null,"检验科医生","医学检验技术专业（101001），全日制大学本科学历，30周岁及以下",8068113003,1,0,1]
[null,"贵溪市滨江卫生院","放射科医生","医学影像学专业（100203TK），全日制大学本科学历，35周岁及以下",1068115001,1,0,1]
[null,"贵溪市白田卫生院","检验科医生","医学检验技术专业（101001），全日制大学本科学历，35周岁及以下",8068116001,1,0,1]
[null,null,"妇产科医生","临床医学专业（100201Ｋ），全日制大学本科学历，35周岁及以下",1068116002,1,0,1]
["余江区","第二人民医院","五官科医生","临床医学类专业（6201），全日制大专及以上学历，具有执业医师资格，35周岁及以下",1060302003,1,0,1]
[null,"第二人民医院","放射、B超医生","医学影像学专业（100203TK），全日制本科及以上学历，35周岁及以下",1060302004,1,0,1]
[null,"余江区中医院","放射科临床诊断医生","医学影像学专业（100203TK），全日制本科及以上学历，35周岁及以下",1060303008,1,0,1]
["赣州市市直医疗卫生单位","赣州市肿瘤医院","乳腺外科医生","外科学专业（100210）乳腺外科方向，全日制研究生学历，硕士以上学位，且有临床医学专业(100201K)全日制大学本科学历，学士学位。已取得与岗位专业相符的执业医师资格。35周岁及以下。",1070001001,1,0,1]
[null,null,"骨科医生","外科学专业（100210）骨外科方向，全日制研究生学历，硕士以上学位，且有临床医学专业(100201K)全日制大学本科学历，学士学位。已取得与岗位专业相符的执业医师资格。35周岁及以下。",1070001002,1,0,1]
[null,null,"头颈外科医生","耳鼻咽喉科专业（100213）或外科学专业（100210）口腔颌面外科或头颈外科方向，全日制研究生学历，硕士以上学位，且有临床医学专业(100201K)全日制大学本科学历，学士学位。已取得与岗位专业相符的执业医师资格。35周岁及以下。",1070001003,1,0,1]
[null,null,"ICU医生","临床医学专业(100201K)，全日制大学本科学历，已取得与岗位专业相符的执业医师资格。35周岁及以下。",1070001004,2,1,1,"使用用人控制数编外招聘，实行人员备案管理，依法参加社会养老保险。"]
[null,null,"影像科医生","医学影像学（100203TK）或临床医学专业(100201K)，全日制大学本科学历。2016年及以前毕业的须已取得与岗位专业相符的执业医师资格。35周岁及以下。",1070001005,1,0,1]
[null,null,"核医学医生","医学影像学（100203TK）或临床医学专业(100201K)，全日制大学本科学历。2016年及以前毕业的须已取得与岗位专业相符的执业医师资格。35周岁及以下。",1070001006,1,0,1]
[null,"赣州市妇幼保健院","儿内科医生","内科学（100201）或儿科学专业（100202），全日制研究生学历，硕士以上学位，且有临床医学专业(100201K)全日制大学本科学历，学士学位。35周岁及以下，若已取得执业医师资格者要求未注册或注册为儿科专业。",1070002001,8,2,6]
[null,null,"妇产科医生","妇产科学专业（100211），全日制研究生学历，硕士以上学位，且有临床医学专业(100201K)全日制大学本科学历，学士学位。35周岁及以下。",1070002002,3,1,2]
[null,null,"遗传咨询医师","遗传学专业（071007），全日制研究生学历，硕士以上学位，且有临床医学专业(100201K)全日制大学本科学历，学士学位。35周岁及以下。",1070002003,1,0,1]
[null,null,"生殖男科医生","外科学专业（100210），全日制研究生学历，硕士以上学位，且有临床医学专业(100201K)全日制大学本科学历，学士学位。具有执业医师资格且完成规培，35周岁及以下",1070002004,1,0,1]
[null,null,"生殖科临床检验人员","医学类专业（10）全日制研究生学历，硕士以上学位，且有临床医学专业(100201K)全日制大学本科学历，学士学位。35周岁及以下。",8070002005,1,0,1]
[null,null,"超声医学科医生","放射医学专业（100106）或影像医学与核医学专业（100207），全日制研究生学历，硕士以上学位，且有临床医学专业(100201K)全日制大学本科学历，学士学位。35周岁及以下。",1070002006,1,0,1]
[null,"赣州市第三人民医院","精神科医生","精神病与精神卫生学专业（100205），全日制研究生学历，硕士以上学位，且有临床医学专业(100201K)全日制大学本科学历，学士学位。已取得与岗位专业相符的执业医师资格，35周岁及以下。",1070003002,1,0,1]
[null,"赣州市第五人民医院","呼吸科医生","临床医学（100201K）专业，全日制大学本科学历，学士学位；取得住院医师规范化培训合格证书；取得医师资格证书。30周岁及以下。",1070004001,2,0,2,"使用用人控制数编外招聘，实行人员备案管理，依法参加社会养老保险。"]
[null,null,"肝病科医生","临床医学（100201K）专业，全日制大学本科学历，学士学位；取得住院医师规范化培训合格证书；取得医师资格证书。30周岁及以下。",1070004002,2,0,2]
[null,null,"结核科医生","临床医学（100201K）专业，全日制大学本科学历，学士学位；取得住院医师规范化培训合格证书；取得医师资格证书。30周岁及以下。",1070004003,2,0,2]
[null,null,"外科医生","临床医学（100201K）专业，全日制大学本科学历，学士学位；取得住院医师规范化培训合格证书；取得医师资格证书。30周岁及以下。",1070004004,2,0,2]
[null,null,"肝病科医生","肿瘤学（100214）专业，全日制研究生学历，硕士学位；取得医师资格证书。35周岁及以下",1070004008,1,0,1]
[null,null,"肝病科医生","内科学（100201）专业，全日制研究生学历，硕士学位；取得医师资格证书。35周岁及以下",1070004009,2,1,1]
[null,null,"结核科医生","内科学（100201）专业，全日制研究生学历，硕士学位；取得医师资格证书。35周岁及以下",1070004010,2,0,2]
[null,null,"呼吸科医生","内科学（100201）专业，全日制研究生学历，硕士学位；取得医师资格证书。35周岁及以下",1070004011,2,0,2]
[null,null,"中医科医生","中医内科学（100506）专业，全日制研究生学历，硕士学位；取得医师资格证书。35周岁及以下。",4070004012,1,0,1]
[null,null,"中医科医生","中西医结合临床（100602）专业，全日制研究生学历，硕士学位；取得医师资格证书。35周岁及以下。",5070004013,1,0,1]
[null,"赣州市医疗急救中心","急救医生","临床医学专业（100201K），全日制大学本科学历，具备执业医师资格（含2018年执业医师考试成绩通过者），35周岁及以下。",1070006002,3,2,1]
["赣县区","赣州市赣县区妇幼保健院","妇产科医师","妇产科学专业（100211），研究生学历，硕士学位，具有执业医师资格，年龄35周岁及以下。学历，硕士学位。具有执业医师资格，年龄35周岁及以下",1070401003,1,0,1]
[null,"赣州市赣县区妇幼保健院","妇产科医师","临床医学专业（100201K），全日制本科学历，具有执业医师资格，年龄35周岁及以下。",1070401004,1,0,1]
["瑞金市","瑞金市人民医院","影像科医师","临床医学专业（100201K）或医学影像学（100203TK）专业，全日制大学本科学历，学士学位，35周岁及以下。",1078101014,1,0,1]
[null,"瑞金市中医院","外科医生","临床医学专业(100201K)，全日制大学本科学历，35周岁及以下。",1078102001,1,0,1]
[null,"瑞金市中医院","外科医生","中医外科学专业(100507)，全日制研究生学历，硕士学位。35周岁及以下，具备执业中医师资格。",4078102002,1,0,1]
["于都县","于都县人民医院","急诊科医生","临床医学专业（100201K），全日制大学本科学历，35周岁及以下",1073101003,4,1,3]
[null,null,"医务科医生","临床医学专业（100201K），全日制大学本科学历，35周岁及以下",1073101006,2,1,1]
[null,null,"放射治疗技师","医学影像技术专业（101003），全日制大学本科学历，35周岁及以下",8073101008,2,1,1]
[null,null,"妇产科医生","临床医学专业（100201K），全日制大学本科学历，35周岁及以下",1073101004,2,0,2]
[null,null,"儿科医生","临床医学专业（100201K），全日制大学本科学历，35周岁及以下",1073101005,2,0,2]
[null,null,"放射治疗医生","医学影像学（100203TK）、临床医学专业（100201K），全日制大学本科学历，35周岁及以下",1073101007,2,0,2]
[null,null,"心理治疗咨询中心医生","精神医学专业（100205TK），全日制大学本科学历，35周岁及以下",1073101009,1,0,1]
[null,"于都县中医院","影像科医生","临床医学专业(620101K)，全日制大专及以上学历，或医学影像学专业（100203TK）全日制大学本科学历,35周岁及以下，取得执业医师资格",1073102001,2,0,2,"使用用人控制数编外招聘，实行人员备案管理，依法参加社会养老保险。"]
[null,null,"皮肤科医生","临床医学专业（100201K)，全日制大学本科学历，35周岁及以下",1073102002,1,0,1]
[null,null,"呼吸科医生","临床医学专业（100201K)，全日制大学本科学历，35周岁及以下。限赣州市户籍",1073102004,1,0,1]
[null,null,"儿科医生","临床医学专业（100201K)，全日制大学本科学历，35周岁及以下",1073102006,1,0,1]
[null,null,"神经外科医生","临床医学专业（100201K)，全日制大学本科学历，35周岁及以下。限赣州市户籍",1073102007,1,0,1]
[null,null,"心胸外科医生","临床医学专业（100201K)，全日制大学本科学历，35周岁及以下。限赣州市户籍",1073102008,1,0,1]
[null,null,"妇产科医生","临床医学专业（100201K)，全日制大学本科学历，35周岁及以下。限赣州市户籍",1073102009,1,0,1]
[null,null,"眼科医生","临床医学专业（100201K)，全日制大学本科学历，35周岁及以下",1073102010,2,0,2]
[null,null,"耳鼻咽喉科医生","临床医学专业（100201K)，全日制大学本科学历，35周岁及以下",1073102011,1,0,1]
[null,null,"口腔科医生","口腔医学专业（100301K)，全日制大学本科学历，35周岁及以下",2073102012,1,0,1]
[null,null,"核医学科医生","医学影像学专业（100203TK)，全日制大学本科学历，35周岁及以下",1073102013,2,0,2]
[null,"于都县妇保院","儿科医生","临床医学专业（100201K)，全日制大学本科学历，35周岁及以下。限于都县户籍\n",1073103001,2,0,2]
[null,"于都县第二人民医院","妇产科医生","临床医学专业（620101K），全日制大专及以上学历，30周岁及以下",1073104003,3,2,1,"使用用人控制数编外招聘，实行人员备案管理，依法参加社会养老保险。"]
[null,null,"儿科医生","临床医学专业（620101K），全日制大专及以上学历，30周岁及以下。限于都县户籍",1073104004,3,2,1]
[null,null,"康复科医生","临床医学专业（620101K），全日制大专及以上学历，30周岁及以下",1073104005,3,1,2]
[null,null,"麻醉科医生","临床医学专业（620101K），全日制大专及以上学历，30周岁及以下",1073104006,2,1,1]
[null,null,"超声诊断医生","临床医学专业（620101K），全日制大专及以上学历，30周岁及以下",1073104009,3,2,1]
[null,null,"公卫科医生","临床医学专业（620101K），全日制大专及以上学历，30周岁及以下。限于都县户籍",3073104007,2,0,2]
[null,"于都县疾病预防控制中心 ","公卫科医生","预防医学专业（100401K），全日制大学本科学历，30周岁及以下",3073105001,4,3,1]
[null,"于都县结核病防治所","公卫科医生","预防医学专业（620601K），全日制大专及以上学历，35周岁及以下。限赣州市户籍",3073107001,1,0,1]
[null,"于都县贡江镇卫生院","麻醉科医生","临床医学（620101K）专业，全日制大专及以上学历；或麻醉学专业（100202TK），全日制大学本科学历，35周岁及以下",1073108004,2,1,1]
[null,null,"眼科医生","临床医学专业（620101K），全日制大专及以上学历，35周岁及以下",1073108005,1,0,1]
[null,null,"口腔科医生","口腔医学专业（620102K），全日制大专及以上学历，35周岁及以下",2073108008,1,0,1]
[null,"于都县仙下乡中心卫生院","麻醉科医生","临床医学（620101K）专业，全日制大专及以上学历；或麻醉学专业（100202TK），全日制大学本科学历，35周岁及以下，取得助理医师资格证",1073110002,1,0,1]
[null,"于都县利村乡中心卫生院","口腔科医生","口腔医学专业（620102K），全日制大专及以上学历，30周岁及以下",1073120003,1,0,1]
[null,"于都县黄麟乡中心卫生院","药剂科中药士","中药学专业（620302），全日制大专及以上学历，35周岁及以下，具备中药师以上资格",7073130004,1,0,1]
[null,null,"影像科医生","医学影像技术专业（620403），全日制大专及以上学历，35周岁及以下，具备影像技士以上资格",8073130005,1,0,1]
[null,"于都县禾丰镇中心卫生院","内、外科医生","临床医学专业（100201K)，全日制大学本科学历，35周岁及以下\n",1073140001,1,0,1]
[null,"于都县岭背镇卫生院","妇产科医生","临床医学专业（620101K），全日制大专及以上学历，35周岁及以下\n",1073160001,1,0,1]
["石城县\n","石城县人民医院","妇产科医生","临床医学专业（100201K)，全日制大学本科学历，学士学位，35周岁及以下，具有执业医师资格证并注册妇产科专业。",1073501003,1,0,1]
[null,"石城县人民医院","儿科医生","临床医学专业（100201K)，全日制大学本科学历，学士学位，35周岁及以下，具有执业医师资格证并注册儿科专业。",1073501004,1,0,1]
[null,"石城县中医院","临床医生","临床医学专业（100201K)，全日制大学本科学历，35周岁及以下。",1073502001,1,0,1]
[null,"石城县中医院","内科医生","临床医学专业（100201K)，全日制大学本科学历，35周岁及以下。",1073502002,1,0,1]
[null,"石城县中医院","妇产科医生","临床医学专业（620101K），全日制大专及以上学历，35周岁及以下，取得执业（助理）医师资格。",1073502003,1,0,1]
[null,"石城县中医院","放射科医生","医学影像学专业（100203TK)，全日制大学本科学历，35周岁及以下。",1073502005,1,0,1]
["大余县","内良乡卫生院","医学检验士","医学检验技术专业（620401），全日制大专及以上学历，取得初级检验士（师）资格。35周岁及以下",8072302001,1,0,1]
[null,"池江镇卫生院","放射科医生","医学影像技术（620403）、临床医学专业（620101K）专业，全日制大专及以上学历，或医学影像学（100203TK）、放射医学（100206TK）专业，全日制大学本科学历；持有执业（助理）医师资格证。35周岁及以下",1072303001,1,0,1]
[null,"吉村镇中心卫生院","放射科医生","医学影像技术（620403）专业、临床医学专业（620101K），全日制大专及以上学历，或医学影像学（100203TK）、放射医学（100206TK）专业，全日制大学本科学历；持有执业（助理）医师资格证。35周岁及以下",1072304001,1,0,1]
[null,"吉村镇中心卫生院","临床医生","临床医学专业（620101K）专业，全日制大专及以上学历，持有执业（助理）医师资格证。35周岁及以下",1072307001,1,0,1]
[null,"大余县妇幼保健院","儿科医生","临床医学专业(620101K）专业，全日制大专及以上学历，持有执业医师资格证并注册为儿科方向。35周岁及以下",1072310002,2,1,1]
[null,"大余县疾控中心","疾控科医生","预防医学专业（100401K)，全日制大学本科学历，35周岁及以下。",3072312001,1,0,1]
["会昌县","会昌县人民医院","临床医师02","临床医学专业（100201K),全日制大学本科学历，30周岁及以下",1073301002,1,0,1]
[null,null,"康复科治疗师","临床医学（100201K）、康复治疗学（101005）专业,全日制大学本科学历，30周岁及以下",4073301006,1,0,1]
[null,null,"病理科医师","临床医学（100201K）,全日制大学本科学历，30周岁及以下",1073301009,1,0,1]
[null,null,"超声诊断医师","临床医学（100201K）、医学影像学（100203TK）专业,全日制大学本科学历,30周岁及以下",1073301010,2,0,2]
[null,null,"影像诊断医师","临床医学（100201K）、眼视光医学（100204TK）专业,全日制大学本科学历,30周岁及以下",1073301011,3,0,3]
[null,null,"临床医师01","临床医学专业（100201K),全日制大学本科学历，30周岁及以下，限赣州市户籍",1073301001,5,2,3]
[null,null,"临床医师03","临床医学专业（100201K),全日制大学本科学历，30周岁及以下，2016年前毕业的须有执业医师资格。限赣州市户籍",1073301003,6,5,1]
[null,null,"临床医师04","临床医学专业（100201K),全日制大学本科学历，30周岁及以下，2016年前毕业的须有执业医师资格",1073301004,8,2,6]
[null,null,"麻醉科医师","麻醉学（100202TK）,全日制大学本科学历,30周岁及以下",1073301007,2,1,1]
[null,null,"检验科医师","医学检验技术（101001）专业,全日制大学本科学历,2017年及以前毕业生须具有检验师资格证，30周岁及以下",8073301012,3,2,1]
[null,"会昌县疾病预防与控制中心","临床医师","临床医学（100201K）,全日制大学本科学历,具有临床执业医师资格,30周岁及以下",1073302003,1,0,1]
[null,null,"预防人员","预防医学（100401K）,全日制大学本科学历,30周岁及以下",3073302004,1,0,1]
[null,"会昌县妇幼保健院","妇产科医生","临床医学专业（100201K），全日制大学本科学历,年龄30周岁及以下。",1073304004,1,0,1]
[null,"会昌县皮肤病防治所","皮肤科医生","临床医学类（100201K），全日制本科，取得执业医师资格证，年龄35周岁及以下",1073305001,1,0,1]
[null,"会昌县乡镇卫生院","全科医生","临床医学（620101K）、中西医结合专业，全日制大专及以上学历，取得执业助理及以上资格，年龄35周岁及以下。限会昌县户籍",1073306002,4,1,3,"按总成绩排名先后选岗        "]
["章贡区","赣州市立医院","消化内科医师","临床医学（100201K）专业,全日制大学本科学历，学士学位,35周岁及以下,取得相应西医执业医师资格,取得住院医师规范化培训合格证书，主治医师不要求规培。",1070008001,1,0,1,"使用用人控制数编外招聘，实行人员备案管理，依法参加社会养老保险。"]
[null,"赣州市立医院","神经内科医师","临床医学（100201K）专业,全日制大学本科学历，学士学位,35周岁及以下,取得相应西医执业医师资格,取得住院医师规范化培训合格证书，主治医师不要求完成规培。",1070008002,1,0,1]
[null,"赣州市立医院","呼吸内科医师","临床医学（100201K）专业,全日制大学本科学历，学士学位,35周岁及以下,取得相应西医执业医师资格，取得住院医师规范化培训合格证书。",1070008005,1,0,1]
[null,"赣州市立医院","眼科医师","临床医学（100201K）专业,全日制大学本科学历，学士学位,35周岁及以下,取得相应西医执业医师资格。","1070008007",1,0,1]
[null,"赣州市立医院","烧伤整形外科\n医师","临床医学（100201K）专业,全日制大学本科学历，学士学位,35周岁及以下，取得相应西医执业医师资格，取得住院医师规范化培训合格证书，主治医师不要求完成规培。",1070008009,1,0,1]
[null,"赣州市立医院","介入血管外科\n医师","临床医学（100201K）专业,全日制大学本科学历，学士学位,35周岁及以下，取得相应西医执业医师资格。","1070008011",1,0,1]
[null,"赣州市立医院","风湿免疫科医师","临床医学（100201K）专业,全日制大学本科学历，学士学位,35周岁及以下,取得相应西医执业医师资格,取得住院医师规范化培训合格证书，主治医师不要求规培。",1070008012,1,0,1]
[null,"赣州市立医院","心胸外科医师","临床医学（100201K）专业,全日制大学本科学历，学士学位,35周岁及以下,取得相应西医执业医师资格。","1070008015",1,0,1]
[null,"赣州市立医院","儿科医师","临床医学（100201K）专业,全日制大学本科学历，学士学位,35周岁及以下，取得相应西医执业医师资格。","1070008016",1,0,1]
[null,"赣州市立医院","急诊内科医师","临床医学（100201K）专业,全日制大学本科学历，学士学位,35周岁及以下，取得相应西医执业医师资格。","1070008017",2,0,2]
[null,"赣州市立医院","放射科医师","医学影像学（100203TK）、临床医学（100201K）专业，全日制大学本科学历，学士学位,35周岁及以下，取得相应西医执业医师资格。","1070008020",1,0,1]
[null,"赣州市立医院","影像科（CT/MR）\n医师","医学影像学（100203TK）、临床医学（100201K）专业，全日制大学本科学历，学士学位,35周岁及以下，取得相应西医执业医师资格和大型设备上岗证。","1070008021",1,0,1]
[null,"章贡区妇幼保健计划生育服务中心","影像科医生","临床医学专业（620101K）,全日制大专及以上学历,35周岁及以下,取得执业医师资格证,执业范围为医学影像和放射治疗专业。",1070201004,1,0,1]
[null,"章贡区疾病预防控制中心","检验科医生","卫生检验与检疫专业(101007)、医学检验技术专业（101001）,全日制大学本科学历，学士学位,年龄35周岁及以下。",8070202003,1,0,1]
[null,"章贡区水西镇卫生院","预防医学科医生","预防医学专业（620601K）,全日制大专以上学历,35周岁及以下,取得执业（助理）医师资格,执业范围为预防医学。  ",3070204001,1,0,1]
[null,"章贡区沙石镇中心卫生院","公共卫生医师","预防医学专业（100401K）,全日制大学本科学历，学士学位,35周岁及以下，取得执业医师资格证,执业范围为预防医学专业。",3070205001,1,0,1]
[null,"章贡区赣江社区卫生服务中心","全科医师","临床医学专业(620101K),全日制大专及以上学历,35周岁及以下,取得执业医师资格，执业注册范围为全科医学（或者取得全科转岗培训合格证）。",1070207001,1,0,1]
[null," 章贡区水南镇章江路社区卫生服务中心","预防医学医生","预防医学专业(620601K),全日制大专及以上学历,35周岁及以下,取得执业（助理）医师资格,执业范围为预防医学。",3070211001,1,0,1]
["信丰县","信丰县人民医院","病理诊断医生","临床医学专业(100201K)，全日制大学本科学历，25周岁及以下","1072201001",1,0,{"$f":"F372-G372","v":1}]
[null,"信丰县人民医院","产科医生","临床医学专业(100201K)，全日制大学本科学历，25周岁及以下","1072201004",1,0,1]
[null,"信丰县人民医院","妇科医生","临床医学专业(100201K)，全日制大学本科学历，25周岁及以下，具有执业医师资格证或已通过执业医师资格考试","1072201005",1,0,1]
[null,"信丰县人民医院","儿科医生","临床医学专业(100201K)，全日制大学本科学历，25周岁及以下","1072201007",1,0,1]
[null,"信丰县人民医院","骨科医生","临床医学专业(100201K)，全日制大学本科学历，25周岁及以下，具有执业医师资格证或已通过执业医师资格考试","1072201008",2,0,2]
[null,"信丰县人民医院","眼科医生","临床医学专业(100201K),全日制大学本科学历，25周岁及以下","1072201009",1,0,1]
[null,"信丰县人民医院","麻醉科医生","麻醉学专业(100202TK)，全日制大学本科学历，25周岁及以下","1072201011",2,0,2]
[null,"信丰县人民医院","泌尿外科医生","临床医学专业(100201K)，全日制大学本科学历，25周岁及以下","1072201012",1,0,1]
[null,"信丰县人民医院","放射科诊断医师","医学影像学专业（100203TK）、放射医学专业（100206TK）或临床医学专业(100201K)，全日制大学本科学历，25周岁及以下","1072201014",2,0,2]
[null,"信丰县人民医院","CT室诊断医师","医学影像学专业（100203TK）、放射医学专业（100206TK）或临床医学专业(100201K)，全日制大学本科学历，25周岁及以下","1072201015",2,0,2]
[null,"信丰县人民医院","检验科诊断医师","临床医学专业(100201K)，全日制大学本科学历，25周岁及以下","1072201016",1,0,1]
[null,"信丰县人民医院","普外科医生","临床医学专业(100201K)，全日制大学本科学历，25周岁及以下，具有执业医师资格证或已通过执业医师资格考试","1072201018",1,0,1]
[null,"信丰县人民医院","新生儿科医生","临床医学专业(100201K)，全日制大学本科学历，30周岁及以下，具有执业医师资格","1072201020",1,0,1]
[null,"信丰县人民医院","口腔科医生","口腔医学专业(100301K)，全日制大学本科学历，25周岁及以下","2072201021",1,0,1]
[null,"信丰县人民医院","急诊科医生","临床医学专业(100201K)，全日制大学本科学历，25周岁及以下","1072201023",2,0,2]
[null,"信丰县人民医院","职能科干事","公共卫生与预防医学类（1004），全日制大学本科学历，25周岁及以下","3072201025",5,0,5]
[null,"信丰县妇幼保健院","儿科医生","临床医学专业(100201K)，全日制大学本科学历，35周岁及以下，具有执业医师资格",1072202001,2,0,2]
[null,"信丰县妇幼保健院","妇产科医生","临床医学专业(100201K)，全日制大学本科学历，35周岁及以下，具有执业医师资格",1072202002,2,1,1]
[null,"信丰县妇幼保健院","影像科医生","临床医学专业(620101K)，全日制大专及以上学历，35周岁及以下，具有执业医师资格",1072202004,2,1,1]
[null,"信丰县嘉定镇同益卫生院","儿科医生","临床医学专业(620101K)，全日制大专及以上学历，35周岁及以下，具有执业（助理）医师资格",1072203002,1,0,1]
[null,"信丰县嘉定镇龙舌卫生院","妇产科医生","临床医学专业(620101K)，全日制大专及以上学历，35周岁及以下，具有执业（助理）医师资格",1072205002,1,0,1]
[null,"信丰县大阿镇中心卫生院","公卫科医生","预防医学专业（620601K），全日制大专及以上学历，30周岁及以下，具有执业（助理）医师资格。限信丰县户籍",3072206001,2,0,2]
[null,"信丰县古陂镇中心卫生院","检验科技士","医学检验技术专业（620401），全日制大专及以上学历，35周岁及以下。限信丰县户籍",8072207002,1,0,1]
[null,"信丰县古陂镇中心卫生院","公卫科医生","预防医学专业（620601K），全日制大专及以上学历，35周岁及以下。限信丰县户籍",3072207003,1,0,1]
[null,"信丰县大塘埠镇中心卫生院","外科医生","临床医学专业(620101K)，全日制大专及以上学历，35周岁及以下，具有执业（助理）医师资格",1072208002,1,0,1]
[null,"信丰县大塘埠镇中心卫生院","公卫科医生","预防医学专业（620601K），全日制大专及以上学历，35周岁及以下，具有执业（助理）医师资格",3072208004,1,0,1]
[null,"信丰县大塘埠镇坪石卫生院","临床医生","临床医学专业(620101K)，全日制大专及以上学历，35周岁及以下，具有执业（助理）医师资格。限信丰县户籍",1072209001,1,0,1]
[null,"信丰县正平镇卫生院","临床医生","临床医学专业(620101K)，全日制大专及以上学历，25周岁及以下",1072212002,2,1,1]
[null,"信丰县正平镇卫生院","公卫科医生","公共卫生与卫生管理类专业（6206），全日制大专学历，或公共卫生与预防医学类专业（1004），全日制大学本科学历，30周岁及以下",3072212004,1,0,1]
[null,"信丰县正平镇九渡卫生院","临床医生","临床医学专业(620101K)，全日制大专及以上学历，35周岁及以下，取得执业（助理）医师资格",1072213001,2,0,2]
[null,"信丰县小河镇中心卫生院","公卫科医生","预防医学专业（620601K），全日制大专及以上学历，35周岁及以下",3072214004,2,0,2]
[null,"信丰县新田镇中心卫生院","检验科技士","医学检验技术专业（620401），全日制大专及以上学历，35周岁及以下。限信丰县户籍",8072215001,1,0,1]
[null,"信丰县小江镇中心卫生院","中医科医生","中医学专业（620103K)，全日制大专及以上学历，35周岁及以下，具有执业医师资格",4072217002,1,0,1]
[null,"信丰县小江镇中心卫生院","影像科医师","临床医学专业(620101K)，全日制大专及以上学历，或医学影像学专业（100203TK）全日制大学本科学历,35周岁及以下，具有执业（助理）医师资格。",1072217003,1,0,1]
[null,"信丰县铁石口镇卫生院","公共科医生","预防医学专业（620601K），全日制大专及以上学历，30周岁及以下，具有执业（助理）医师资格。限信丰县户籍",3072218002,1,0,1]
[null,"信丰县安西镇卫生院","内儿科医生","临床医学专业(620101K)，全日制大专及以上学历，35周岁及以下",1072219001,4,3,1]
[null,"信丰县安西镇卫生院","妇产科医生","临床医学专业(620101K)，全日制大专及以上学历，35周岁及以下",1072219002,1,0,{"$f":"F408-G408","v":1}]
[null,"信丰县油山镇卫生院","临床医生","临床医学专业(620101K)，全日制大专及以上学历，30周岁及以下，具有执业（助理）医师资格",1072219003,1,0,1]
[null,"信丰县崇仙乡卫生院","公卫科医生","预防医学专业（620601K），全日制大专及以上学历，30周岁及以下。",3072221001,1,0,1]
[null,"信丰县崇仙乡卫生院","公卫科人员","公共卫生与卫生管理类专业（6206），全日制大专学历；或公共卫生与预防医学类（1004），全日制大学本科学历，30周岁及以下",3072221002,1,0,1]
[null,"信丰县崇仙乡卫生院","药房人员","药学专业（620301），全日制大学本科学历，25周岁及以下。限信丰县户籍",6072221003,1,0,1]
["宁都县","宁都县疾控中心","传防科","预防医学专业（620601K），全日制大专及以上学历，35周岁及以下",3073001001,1,0,1]
[null,null,"免规科","预防医学专业（620601K），全日制大专及以上学历，35周岁及以下",3073001002,1,0,1]
[null,null,"卫生监测医师","预防医学（620601K）、公共卫生管理专业（620602），全日制大专及以上学历，35周岁及以下",3073001004,1,0,1]
[null,"宁都县人民医院","临床医生","外科学专业（100210），全日制研究生学历，硕士及以上学位。35周岁及以下",1073002001,1,0,1]
[null,null,"NICU医生","临床医学专业（100201K），全日制大学本科学历，35周岁及以下",1073002006,1,0,1]
[null,null,"眼科医生","临床医学专业（100201K），全日制大学本科学历，35周岁及以下",1073002007,1,0,1]
[null,null,"急诊科医生","临床医学专业（100201K），全日制大学本科学历，35周岁及以下",1073002011,1,0,1]
[null,null,"CT诊断医生","临床医学（100201K）或医学影像学（100203TK）专业，全日制大学本科学历，35周岁及以下",1073002013,1,0,1]
[null,"宁都县中医院","内科医生","临床医学专业（100201K），全日制大学本科学历，35周岁及以下",1073003002,1,0,1]
[null,null,"儿科医生","临床医学专业（100201K），全日制大学本科学历，35周岁及以下",1073003004,1,0,1]
[null,null,"外科医生","临床医学专业（100201K)，全日制大学本科学历，35周岁及以下",1073003005,1,0,1]
[null,null,"麻醉科医生","麻醉学专业（100202TK），全日制大学本科学历，35周岁及以下",1073003007,1,0,1]
[null,"宁都县妇幼保健院","妇产科医生","临床医学专业（100201K)，全日制大学本科学历，35周岁及以下",1073004001,5,0,5]
[null,null,"儿科医生","临床医学专业（100201K），全日制大学本科学历，35周岁及以下",1073004002,5,0,5]
[null,null,"内科医生","临床医学专业（100201K），全日制大学本科学历，35周岁及以下",1073004003,2,0,2]
[null,null,"口腔科医生","临床医学专业（100201K），全日制大学本科学历，35周岁及以下",1073004004,2,0,2]
[null,null,"五官科医生","临床医学专业（100201K），全日制大学本科学历，35周岁及以下",1073004005,2,0,2]
[null,null,"麻醉科医生","麻醉学（100202TK），全日制大专及以上学历，35周岁及以下",1073004006,2,1,1]
[null,null,"放射科医生","放射医学（100203TK）、医学影像学专业（100206TK），全日制大专及以上学历，35周岁及以下",1073004007,2,0,2]
[null,"宁都县洛口镇中心卫生院","药房","药学（100701）、临床药学专业（100703TK），全日制大学本科学历，35周岁及以下",6073015003,1,0,1]
["龙南县","龙南县第一人民医院","急诊科医师","临床医学专业(100201K)，全日制大学本科学历，学士学位，35周岁及以下，取得执业医师资格（含2018年执业医师资格考试成绩通过者）",1072701003,2,1,1]
[null,"龙南县第一人民医院","儿科医师","临床医学专业(100201K)，全日制大学本科学历，学士学位，35周岁及以下，取得执业医师资格（含2018年执业医师资格考试成绩通过者）",1072701004,2,0,2]
[null,"龙南县第一人民医院","麻醉科医师","麻醉学专业(100202TK)，全日制大学本科学历，学士学位，35周岁及以下，取得执业医师资格（含2018年执业医师资格考试成绩通过者）",1072701005,2,0,2]
[null,"龙南县第一人民医院","医学影像科诊断医师","医学影像技术专业（620403)，全日制大专及以上学历；或医学影像学(100203TK）专业，全日制大学本科学历，35周岁及以下，取得执业医师资格（含2018年执业医师考试成绩通过者）",1072701007,1,0,1]
[null,"龙南县第一人民医院","超声科诊断医师","医学影像学专业(100203TK），全日制大学本科学历，35周岁及以下",1072701008,1,0,1]
[null,"龙南县妇幼保健计划生育服务中心","门诊医生","临床医学专业(620101K)，全日制大专及以上学历，35周岁及以下，取得执业（助理）医师资格。",1072702001,1,0,1]
[null,"龙南县皮肤病性病防治所","门诊医生","临床医学专业(620101K)，全日制大专及以上学历，35周岁及以下，取得执业（助理）医师资格。",1072703001,1,0,1]
[null,"龙南县临塘乡中心卫生院","公共卫生科医生","预防医学专业(620601K)，全日制大专及以上学历，35周岁及以下，取得执业（助理）医师资格。",3072704001,1,0,1]
[null,"龙南县临塘乡中心卫生院","内科医生","临床医学专业(620101K)，全日制大专及以上学历，35周岁及以下，取得执业（助理）医师资格。",1072704002,1,0,1]
[null,"龙南县夹湖乡卫生院","公共卫生科医生","预防医学专业(620601K)，全日制大专及以上学历，35周岁及以下，取得执业（助理）医师资格。",3072707001,1,0,1]
[null,"龙南县程龙镇卫生院","中医科医生","中医学专业(620103K)，全日制大专及以上学历，35周岁及以下，取得执业（助理）医师资格。",4072708001,1,0,1]
[null,null,"公共卫生科医生","预防医学专业(620601K)，全日制大专及以上学历，35周岁及以下，取得执业（助理）医师资格。",3072708002,1,0,1]
[null,"龙南县渡江镇卫生院","公共卫生科医生","预防医学专业(620601K)，全日制大专及以上学历，35周岁及以下，取得执业（助理）医师资格。",3072709001,1,0,1]
[null,"龙南县南亨乡卫生院","内科医生","临床医学专业(620101K)，全日制大专及以上学历，35周岁及以下，取得执业（助理）医师资格。",1072710001,1,0,1]
[null,"龙南县龙南镇卫生院","外科医生","临床医学专业(100201K)，全日制大学本科学历，学士学位，35周岁及以下，取得执业（助理）医师资格。",1072711001,1,0,1]
[null,"龙南县杨村镇中心卫生院","放射科医生","临床医学(620101K）或医学影像技术专业（620403），全日制大专及以上学历，35周岁及以下，取得执业（助理）医师资格，注册执业范围为医学影像或放射治疗专业。",1072712001,1,0,1]
[null,null,"内科医生","临床医学专业（620101k)，全日制大专及以上学历，35周岁及以下，取得执业（助理）医师资格证书。",1072712002,2,0,2]
[null,null,"妇产科医生","临床医学专业（620101K），全日制大专及以上学历，35周岁及以下，取得执业（助理）医师资格。",1072712003,2,0,2]
[null,"龙南县汶龙镇卫生院","内科医生","临床医学专业（620101K），全日制大专及以上学历，35周岁及以下，取得执业（助理）医师资格。",1072713001,1,0,1]
[null,null,"放射科医生","临床医学(620101K）或医学影像技术专业（620403），全日制大专及以上学历，35周岁及以下，取得执业（助理）医师资格，注册执业范围为医学影像或放射治疗专业。",1072713002,1,0,1]
[null,null,"门诊护士","护理专业（620201），全日制大专及以上学历，30周岁及以下，取得执业护士（师）资格。限龙南县户籍",9072713003,1,0,1]
["上犹县","上犹县平富乡卫生院","临床检验人员","全日制大专及以上学历，医学检验技术专业（620401），取得检验士以上资格证，年龄35周岁以下",8072402002,1,0,1]
[null,"上犹县寺下镇中心卫生院","公共卫生医师","全日制大专及以上学历，预防医学专业（620601K），年龄35周岁以下",3072403002,1,0,1]
[null,"上犹县妇幼保健院","中医科医生","全日制本科及以上学历，中医学专业（100501K），取得执业医师及以上资格证，年龄35周岁以下",4072409003,1,0,1,"使用用人控制数编外招聘，实行人员备案管理，依法参加社会养老保险"]
[null,null,"儿科医生","全日制本科及以上学历，临床医学专业（100201K），取得执业医师及以上资格证，年龄35周岁及以下",5072409004,1,0,1]
[null,"上犹县人民医院","心血管内科医生","全日制本科及以上学历，临床医学专业（100201K），年龄35周岁以下",1072410006,2,1,1]
[null,null,"妇产科医生","全日制本科及以上学历，临床医学专业（100201K），取得执业医师及以上资格证，年龄35周岁以下",1072410002,2,0,2]
[null,null,"超声科医生","全日制本科及以上学历，医学影像学专业（100203TK），年龄35周岁以下",1072410003,1,0,1]
[null,null,"放射科医生","全日制本科及以上学历，医学影像学专业（100203TK），年龄35周岁以下",1072410004,2,0,2]
[null,null,"康复科医生","全日制本科及以上学历，临床医学专业（100201K），年龄35周岁以下",1072410012,1,0,1]
[null,null,"公共卫生人员","全日制本科及以上学历，预防医学专业（100401K），年龄35周岁以下",3072410015,1,0,1]
[null,"上犹县中医院","妇产科医生","全日制本科及以上学历，临床医学专业（100201K），年龄35周岁以下，取得执业医师资格临床医学专业（620101K）学历可放宽至全日制大专",1072411003,1,0,1]
[null,null,"麻醉科医生","全日制本科及以上学历，麻醉专业（100202TK），年龄35周岁及以下",1072411009,1,0,1]
["寻乌县","寻乌县人民医院","超声诊断医生","临床医学专业（100201K)，全日制大学本科学历，35周岁及以下。取得执业医师资格且执业范围注册为医学影像的可放宽至全日制大专学历。",1073401006,3,1,2]
[null,"寻乌县人民医院","临床医生2","临床医学（100201K），全日制大学本科学历，35周岁及以下。",1073401002,5,0,5]
[null,"寻乌县人民医院","麻醉医生","麻醉学（100202TK）、临床医学专业（100201K），全日制大学本科学历，35周岁及以下。取得执业医师资格且执业范围注册为麻醉的可放宽至全日制大专学历。",1073401004,2,0,2]
[null,"寻乌县人民医院","影像诊断医生","医学影像学（100203TK）、临床医学专业（100201K)，全日制大学本科学历，35周岁及以下。取得执业医师资格且执业范围注册为医学影像或放射医学的可放宽至全日制大专学历。",1073401005,3,0,3]
[null,"寻乌县中医院","临床医生","临床医学专业（100201K)，全日制大学本科学历，35周岁及以下。取得执业医师资格可放宽至全日制大专学历。",1073402001,2,1,1]
[null,"寻乌县中医院","影像诊断医生","医学影像学（100203TK）、临床医学专业（100201K)，全日制大学本科学历，35周岁及以下。取得执业医师资格且执业范围注册为医学影像或放射医学的可放宽至全日制大专学历。",1073402002,2,0,2]
[null,"寻乌县中医院","临床医生","口腔医学专业（100301K），全日制大学本科学历，取得执业医师资格的可放宽至临床医学专业（620101K），全日制大专学历。35周岁及以下，限寻乌县户籍",2073402003,2,0,2]
[null,"寻乌县中医院","临床医生","麻醉学（100202TK）、临床医学专业（100201K），全日制大学本科学历，35周岁及以下。取得执业医师资格且执业范围注册为麻醉的可放宽至全日制大专学历。",1073402004,2,0,2]
[null,"寻乌县皮肤病医院","医学技术类","医学美容技术专业（620404），全日制大专学历。35周岁及以下，限寻乌县户籍",1073404002,2,1,1]
[null,"寻乌县妇幼保健计划生育服务中心","超声诊断医生","医学影像学专业（100203TK），全日制大学本科学历，取得执业医师资格的可放宽至医学影像技术专业（620403)，全日制大专及以上学历。35周岁及以下。",1073403001,1,0,1]
[null,"寻乌县皮肤病医院","临床医生","35周岁及以下，全日制大学本科，取得执业医师资格的可放宽至全日制大专学历，中西医结合、中医学专业（100501K、100601K、620103K)。35周岁及以下，限寻乌县户籍",5073404001,3,1,2]
[null,"寻乌乡镇卫生院","公共卫生和卫生管理","预防医学专业（620601K），全日制大专及以上学历，35周岁及以下",3073405003,6,0,6,"按总成绩排名先后选择乡镇卫生院"]
[null,"寻乌乡镇卫生院","妇产科医生","临床医学专业（620101K），全日制大专及以上学历，具有执业（助理）医师资格，且执业范围注册为妇幼，35周岁及以下",1073405006,3,0,3]
[null,"寻乌县乡镇卫生院","临床医生2","临床医学专业（620101K），全日制大专及以上学历，具有执业（助理）医师资格，35周岁及以下",1073405002,6,1,5]
[null,"寻乌县乡镇卫生院","医学技术类","医学影像技术转移（620463），全日制大专及以上学历，具有执业资格证，35周岁及以下",8073405010,3,2,1]
["赣州经开区","赣州经济技术开发区蟠龙镇中心卫生院","妇产科医生","临床医学专业（100201K），全日制大学本科学历，学士学位，35周岁及以下，执业医师资格（执业注册范围为妇产科）",1070501002,1,0,1]
[null,null,"临床医生","临床医学专业（100201K），全日制大学本科学历，学士学位，35周岁及以下，执业医师资格",1070501004,1,0,1]
[null,"赣州经济技术开发区三江乡卫生院","临床医生","临床医学专业（100201K），全日制大学本科学历，35周岁及以下，执业医师资格",1070502001,1,0,1]
[null,"赣州经济技术开发区黄金岭街道社区卫生服务中心","临床医生","临床医学专业（100201K），全日制大学本科学历，学士学位，35周岁及以下，执业医师资格",1070503001,3,1,2]
[null,null,"妇产科医生","临床医学专业（100201K），全日制大学本科学历，学士学位，35周岁及以下，执业医师资格（执业注册范围为妇产科）",1070503002,1,0,1]
[null,null,"公共卫生科医生","预防医学专业（620601K），全日制大专及以上学历，年龄在35周岁及以下、执业（助理）医师资格",3070503004,1,0,1]
[null,null,"影像科医生","医学影像学专业（100203TK）、全日制大学本科学历、年龄在35周岁及以下、执业（助理）医师资格",1070503006,1,0,1]
[null,"赣州经济技术开发区湖边镇卫生院","临床医生","临床医学专业（100201K），全日制大学本科学历，学士学位，35周岁及以下，执业医师资格",1070504001,1,0,1]
["袁州区","宜春市第二人民医院","急诊内科医生","临床医学专业(100201K)；全日制大学本科学历，学士学位；30周岁及以下；2017年以前毕业生须取得执业医师证。",1090201001,2,1,1]
[null,"宜春市第二人民医院","急诊外科医生","临床医学专业(100201K)；全日制大学本科学历，学士学位；30周岁及以下；2017年以前毕业生须取得执业医师证。",1090201002,2,1,1]
[null,"宜春市第二人民医院","重症监护室医生","临床医学专业(100201K)；全日制大学本科学历，学士学位；30周岁及以下；2017年以前毕业生须取得执业医师证。",1090201007,2,1,1]
[null,"宜春市第二人民医院","全科医生（社区）","临床医学专业(100201K)；全日制大学本科学历，学士学位；30周岁及以下；2017年以前毕业生须取得执业医师证。",1090201010,2,1,1]
[null,"宜春市第二人民医院","神经外科医生","临床医学专业(100201K)；全日制大学本科学历，学士学位；30周岁及以下；2017年以前毕业生须取得执业医师证。",1090201012,2,0,2]
[null,"宜春市第二人民医院","五官科医生","临床医学专业(100201K)；全日制大学本科学历，学士学位；30周岁及以下；2017年以前毕业生须取得执业医师证。",1090201013,1,0,1]
[null,"宜春市第二人民医院","放射科医生","临床医学专业(100201K)；全日制大学本科学历，学士学位；30周岁及以下。",1090201016,1,0,1]
[null,"宜春市第二人民医院","放射科医生","医学影像学专业(100203TK)；全日制大学本科学历，学士学位；30周岁及以下；须取得执业医师证。",1090201017,1,0,1]
[null,"宜春市第二人民医院","超声科医生","临床医学（100201K）和医学影像学专业，（100203TK）；全日制大学本科学历，学士学位；30周岁及以下。",1090201020,1,0,1]
[null,"袁州区妇幼保健院","儿科医师","临床医学专业（100201K），全日制大学本科学历，学士学位，35周岁及以下、2017年以前毕业生须取得执业医师证。",1090203006,1,0,1]
[null,"袁州区妇幼保健院","妇产科医师","临床医学专业（100201K），全日制大学本科学历，学士学位，35周岁及以下、2017年以前毕业生须取得执业医师证。",1090203005,2,1,1]
[null,"袁州区乡镇卫生院","妇产医师","临床医学（620101K），全日制大专及以上学历；或妇幼保健医学专业（100403TK），全日制大学本科学历；取得执业助理医师证；30周岁及以下。",1090206005,4,0,4]
[null,"袁州区乡镇卫生院","防疫医师","预防医学专业（620601k），全日制大专及以上学历；取得公卫执业助理医师证；30周岁及以下。",3090206007,2,0,2]
[null,"袁州区乡镇卫生院","医学影像医师","医学影像学专业（100203TK），全日制大学本科学历；取得执业助理医师证；30周岁及以下。",1090206012,2,0,2]
["高安市","高安市人民医院","B超室医生","医学影像学专业(100203TK)，全日制大学本科学历，学士学位，年龄30周岁及以下",1098301005,3,2,1]
[null,"高安市人民医院","放射科医生","医学影像学专业(100203TK)，全日制大学本科学历，学士学位，年龄30周岁及以下",1098301007,1,0,1]
[null,"高安市人民医院","口腔科医生","口腔医学专业(100301K)，全日制大学本科学历，学士学位，年龄30周岁及以下",2098301009,1,0,1]
[null,"高安市中医院","临床医生","临床医学专业(100201K)，全日制大学本科学历，学士学位，年龄35周岁及以下，2017年及以前毕业生须具有执业医师资格证书",1098302001,2,0,2]
[null,"高安市中医院","影像医生","临床医学（620101K）专业，全日制大专及以上学历，或医学影像学（100203TK)专业，全日制大学本科学历，学士学位，年龄35周岁及以下，2017年及以前毕业生须具有执业医师资格证书。",1098302007,3,2,1]
[null,"高安市妇幼保健院","儿科医生","临床医学专业(100201K)，全日制大学本科学历，学士学位，年龄30周岁及以下",1098303002,1,0,1]
[null,"高安市妇幼保健院","B超室医生","医学影像学专业(100203TK)，全日制大学本科学历，学士学位，年龄35周岁及以下，须具有超声波医学专业技术中级资格证",1098303005,1,0,1]
[null,"高安市骨伤医院","临床医生","临床医学专业(100201K)，全日制大学本科学历，学士学位，年龄30周岁及以下",1098304001,9,0,9]
[null,"高安市骨伤医院","影像医生","医学影像学专业(100203TK)，全日制大学本科学历，学士学位，年龄30周岁及以下",1098304004,6,0,6]
[null,"高安市卫生计生综合监督执法局","公卫医生","预防医学专业(620601K)，全日制大专及以上学历，年龄30周岁及以下",3098306002,1,0,1]
[null,"高安市乡镇卫生院","临床医生","临床医学专业(620101K)，全日制大专及以上学历，年龄35周岁及以下",1098310002,10,8,2]
[null,"高安市乡镇卫生院","公卫医生","预防医学专业(620601K)，全日制大专及以上学历，年龄35周岁及以下",3098310005,2,0,2]
[null,"高安市乡镇卫生院","麻醉科医生","麻醉学专业(100202TK)，全日制大学本科学历，学士学位，年龄35周岁及以下",1098310006,1,0,1]
[null,"高安市乡镇卫生院","口腔科医生","口腔医学技术专业(620405)，全日制大专及以上学历，年龄35周岁及以下，具有助理医师及以上执业资格证书",2098310007,1,0,1]
["奉新县","奉新县东风卫生院","妇产科医生","临床医学专业(620101K)，全日制大专及以上学历，30周岁以下",1092104001,1,0,1]
[null,"奉新县东风卫生院","麻醉医生","临床医学专业(620101K)，全日制大专及以上学历，30周岁以下",1092104003,1,0,1]
[null,"奉新县上富中心卫生院","临床医师","临床医学专业(620101K)，全日制大专及以上学历，30周岁以下，取得执业助理医师及以上资格",1092105001,3,2,1]
[null,"奉新县澡溪卫生院","影像医师","医学影像技术专业（620403），全日制大专及以上学历，30周岁以下，取得助理医师及以上资格",8092109001,1,0,1]
["樟树市","樟树市人民医院","质控科临床医生","临床医学专业(100201K)，全日制大学本科学历，学士学位、年龄35周岁及以下",1098201002,1,0,1]
[null,"樟树市人民医院","急诊科医生","临床医学专业(100201K)，全日制大学本科学历,学士学位、年龄35周岁及以下",1098201007,2,1,1]
[null,"樟树市人民医院","CT、核共振室医生","医学影像学专业（100203TK），全日制大学本科学历、学士学位、年龄35周岁及以下",1098201010,1,0,1]
[null,"樟树市人民医院","放射科医生","放射医学专业（100206TK），全日制大学本科学历、学士学位，年龄35周岁及以下",1098201012,1,0,1]
[null,"樟树市人民医院","全科医学医生","临床医学专业（100201K），全日制大学本科学历，学士学位、年龄30周岁及以下",1098201015,1,0,1]
[null,"樟树市人民医院","口腔科医生","口腔医学专业（100301K），全日制大学本科学历，学士学位、年龄35周岁及以下",2098201013,1,0,1]
[null,"江西省樟树市中医医院","肛肠科医生","临床医学专业（100201K）、全日制大学本科、取得学士学位、年龄30周岁及以下",1098202003,1,0,1]
[null,"江西省樟树市中医医院","耳鼻喉科医生","临床医学专业（100201K）、全日制大学本科、取得学士学位、年龄30周岁及以下",1098202004,1,0,1]
[null,"江西省樟树市中医医院","放射科医生","临床医学（100201K）或医学影像学（100203TK）专业、全日制大学本科学历、年龄30周岁及以下",1098202005,1,0,1]
[null,"樟树市疾病预防控制中心","公卫医生","预防医学专业（100401K）、全日制大学本科学历、学士学位、年龄30周岁及以下",3098203001,1,0,1]
[null,"樟树市第三人民医院","内科医生","临床医学专业（620101K）、全日制大专及以上学历、年龄35周岁及以下、取得执业医师资格证",1098206001,4,1,3]
[null,"樟树市第三人民医院","内科医生","临床医学专业（620101K）、全日制大专及以上学历、年龄25周岁及以下、取得助理医师资格证",1098206002,3,2,1]
[null,"樟树市第三人民医院","内科医生","临床医学专业（100201K）、全日制大学本科学历、学士学位、年龄35周岁及以下",1098206004,2,1,1]
[null,"樟树市第三人民医院","内科医生","临床医学专业（620101K）、全日制大专及以上学历、年龄25周岁及以下",1098206005,2,1,1]
[null,"樟树市第三人民医院","公卫医生","预防医学专业（620601K）、全日制大专及以上学历、年龄25周岁及以下、取得助理医师资格证",3098206003,1,0,1]
[null,"樟树市昌傅镇中心卫生院","内科医生","临床医学专业（620101K），全日制大专及以上学历，年龄35周岁及以下、取得执业（助理）医师证",1098208001,1,0,1]
[null,"樟树市洲上乡卫生院","内科医生","临床医学专业（620101K）、全日制大专及以上学历、年龄30周岁及以下、取得助理医师资格证",1098211001,1,0,1]
[null,"樟树市义成镇卫生院","内科医生","临床医学专业（620101K）、全日制大专及以上学历、年龄35周岁及以下、取得执业助理医师资格证",1098216001,1,0,1]
[null,"樟树市店下镇中心卫生院","公卫医生","预防医学专业（620601K）、全日制大专及以上学历，年龄30周岁及以下",3098209001,1,0,1]
[null,"樟树市中洲乡卫生院","医学影像技士","医学影像技术专业(620403)、全日制大专及以上学历、年龄35周岁及以下",8098215003,1,0,1]
["靖安县","靖安县人民医院","妇产科医生","临床医学专业（100201K），全日制大学本科学历，取得执业医师资格证者可放宽学历至临床医学专业（620101K），全日制大专及以上学历，35周岁及以下全日制大学本科学历，取得执业医师资格证者可放宽学历至临床医学专业（620101K），全日制大专及以上学历，35周岁及以下",1092501003,2,1,1]
[null,null,"儿科医生","临床医学专业（100201K），全日制大学本科学历，取得执业医师资格证者可放宽学历至临床医学专业（620101K），全日制大专及以上学历，35周岁及以下",1092501004,1,0,1]
[null,"靖安县中医院","麻醉科医生","临床医学专业（620101K），全日制大专及以上学历，或麻醉学专业（100202TK），全日制大学本科学历、35周岁及以下",1092502005,1,0,1]
[null,"靖安县妇幼保健计划生育服务中心","妇产科医生","临床医学专业（620101K），全日制大专及以上学历，取得执业医师资格,35周岁及以下",1092503001,1,0,1]
[null,"靖安县妇幼保健计划生育服务中心","临床医生","临床医学专业（620101K），全日制大专及以上学历，取得执业医师资格,35周岁及以下",1092503002,1,0,1]
[null,"靖安县子宫颈癌防治研究所","妇产科医生","临床医学专业（620101K），全日制大专及以上学历，35周岁及以下",1092504002,1,0,1]
[null,"靖安县罗湾乡中心卫生院","检验士（师）","医学检验技术专业(620401)，全日制大专及以上学历，35周岁及以下",8092505001,1,0,1]
[null,"靖安县中源乡中心卫生院","临床科室医生","临床医学专业（620101K），全日制大专及以上学历，35周岁及以下",1092506001,1,0,1]
["上高县","上高县人民医院","眼科医生","眼视光医学（100204TK），全日制大学本科学历，学士学历，年龄在30周岁及以下，2016年以前毕业生须具有医师执业资格证",1092301006,1,0,1]
[null,"上高县翰堂镇卫生院","公共卫生与健康医师","预防医学专业（620601K），全日制大专及以上学历，年龄在35周岁及以下",3092310003,1,0,1]
[null,"上高县新界埠卫生院","公卫医师","预防医学专业（620601K），全日制大专及以上学历，年龄在30周岁及以下",3092311002,1,0,1]
[null,"上高县蒙山镇卫生院","药学药师","药学专业（620301），全日制大专及以上学历，年龄35周岁及以下，限上高县户籍，取得士级资格证书",6092312003,1,0,1]
[null,"上高县镇渡乡卫生院","临床医学医师","临床医学专业（620101K），全日制大专及以上学历，年龄在35周岁及以下",1092313002,2,0,2]
[null,"上高县中医院","医学影像诊断医师","临床医学专业（100201k），全日制大学本科学历，学士学位，年龄在30周岁及以下",1092302002,1,0,1]
[null,"上高县中医院","眼科医生","眼视光医学（100204TK），全日制大学本科学历，学士学历，年龄在30周岁及以下",1092302003,1,0,1]
[null,"上高县妇幼保健计划生育服务中心","妇产科医生","临床医学专业（620101K），全日制大专及以上学历，年龄在35周岁及以下，取得执业医师资格证书",1092304001,3,2,1]
[null,"上高县妇幼保健计划生育服务中心","儿科医生","临床医学专业（620101K），全日制大专及以上学历，年龄在35周岁及以下，取得执业医师资格证书",1092304002,2,1,1]
[null,"上高县妇幼保健计划生育服务中心","放射科医生","临床医学专业（620101K），全日制大专及以上学历，年龄在35周岁及以下，取得执业助理医师资格证书",1092304004,1,0,1]
["万载县","万载县人民医院","儿科医生","临床医学专业(100201K)，全日制大学本科学历，35周岁及以下",1092201002,2,1,1]
[null,"万载县人民医院","妇产科医生","临床医学专业(100201K)，全日制大学本科学历，35周岁及以下",1092201004,1,0,1]
[null,"万载县人民医院","B超医生","临床医学、医学影像学专业(100201k，100203TK)，全日制本科及以上学历，35周岁以下",1092201009,1,0,1]
[null,"万载县人民医院","检验科技师","医学检验学专业(101001)，全日制大学本科学历，35周岁及以下",8092201010,2,1,1]
[null,"万载县中医院","康复科医生","康复医学专业(101005)，全日制大学本科,取得学士学位，35周岁以下",1092202004,1,0,1]
[null,"万载县中医院","儿科医生","临床医学专业(100201K)，全日制大学本科，35周岁以下",1092202008,1,0,1]
[null,"万载县中医院","口腔科医生","口腔医学专业(100301K)，全日制大学本科，35周岁以下",2092202009,1,0,1]
[null,"万载县茭湖乡卫生院","内科医生","临床医学专业(620101K)，全日制大专及以上学历、35周岁以下,取得助理医师及以上资格",1092211001,1,0,1]
[null,"万载县赤兴乡卫生院","妇产科医生","临床医学专业（620101K），全日制大专及以上学历、35周岁及以下，取得助理医师及以上资格",1092212001,1,0,1]
[null,"万载县岭东乡卫生院","外科医生","临床医学专业（620101K），全日制大专及以上学历、35周岁及以下",1092215002,1,0,1]
["宜丰县","宜丰县人民医院","妇产科医生","临床医学（100201K），全日制大学本科学历，学士学位,30周岁以下,",1092401010,3,1,2]
[null,"宜丰县人民医院","肿瘤科医生","临床医学（100201K），全日制大学本科学历，学士学位,30周岁以下",1092401012,1,0,1]
[null,"宜丰县人民医院","内科医生","临床医学（100201K），全日制大学本科学历，学士学位,30周岁以下",1092401014,2,1,1]
[null,"宜丰县人民医院","肾内科医生","临床医学（100201K），全日制大学本科学历，学士学位,30周岁以下",1092401015,1,0,1]
[null,"宜丰县人民医院","脑外科医生","临床医学（100201K），全日制大学本科学历，学士学位,30周岁以下",1092401017,1,0,1]
[null,"宜丰县人民医院","五官科医生","临床医学（100201K），全日制大学本科学历，学士学位，30周岁以下",1092401018,1,0,1]
[null,"宜丰县人民医院","麻醉科医生","临床医学（100201K），全日制大学本科学历，学士学位，30周岁以下",1092401020,1,0,1]
[null,"宜丰县人民医院","呼吸内科医生","临床医学（100201K），全日制大学本科学历，学士学位,30周岁以下",1092401013,1,0,1]
[null,"宜丰县中医院","内科医师","临床医学专业（100201K），全日制大学本科学历，学士学位，年龄在35周岁以下。",1092402001,2,1,1]
[null,"宜丰县中医院","骨伤科医生","临床医学专业（100201K），全日制大学本科学历，学士学位，年龄在35周岁以下。",1092402003,2,0,2]
[null,"宜丰县中医院","外科医生","临床医学专业（100201K），全日制大学本科学历，学士学位，年龄在35周岁以下。",1092402004,3,0,3]
[null,"宜丰县中医院","儿科医生","临床医学专业（100201K），全日制大学本科学历，学士学位，年龄在35周岁以下。",1092402005,1,0,1]
[null,"宜丰县中医院","妇产科医生","临床医学专业（100201K），全日制大学本科学历，学士学位，年龄在35周岁以下。",1092402006,2,0,2]
[null,"宜丰县中医院","麻醉科医生","麻醉学专业(100202TK),全日制大学本科学历，学士学位，年龄在35周岁以下。",1092402008,1,0,1]
[null,"宜丰县中医院","放射科影像诊断医生","医学影像学专业(100203TK)或放射医学（100206TK ),全日制大学本科学历，学士学位，年龄在35周岁以下。",1092402009,2,0,2]
[null,"宜丰县中医院","B超室影像诊医生","医学影像学专业(100203TK),全日制大学本科学历，学士学位，年龄在35周岁以下。",1092402010,1,0,1]
[null,"宜丰县妇幼保健院","妇产科医生","临床医学（100201K）专业，全日制大学本科学历，年龄在35周岁及以下。",1092403002,1,0,1]
[null,"宜丰县妇幼保健院","儿科医生","临床医学（100201K）专业，全日制大学本科学历，年龄在35周岁及以下。",1092403003,1,0,1]
[null,"宜丰县妇幼保健院","外科医生","临床医学专业（620101K），全日制大专及以上学历，取得执业医师证，年龄在30周岁及以下。",1092403006,1,0,1]
[null,"宜丰县疾病预防控制中心","传染病防控医生","公共卫生与卫生管理类专业（6206），全日制大专及以上学历，年龄35周岁下。",3092404004,1,0,1]
[null,"宜丰县乡镇卫生院","医学影像诊断医生","临床医学专业（620101K）,或医学影像学(100203TK),全日制大及以上学历35周岁及以下",1092405001,1,0,1]
[null,"宜丰县乡镇卫生院","西医临床医生","临床医学专业（620101K），全日制大及以上学历，35周岁及以下",1092405003,3,2,1]
["丰城市","丰城市中医院","皮肤科医生","临床医学（100201K），全日制大学本科学历，学士学位，年龄30周岁及以下",1098102001,1,0,1]
[null,"丰城市中医院","影像医生","医学影像学(100203TK)，全日制大学本科学历，学士学位，年龄30周岁及以下",1098102002,3,0,3]
[null,"丰城市皮肤病医院","医师","临床医学专业（100201K），全日制大学本科学历，学士学位，年龄30周岁及以下",1098105001,1,0,1]
[null,"丰城市第四人民医院","影像医师","临床医学（100201K）或医学影像学(100203TK)专业，全日制大学本科学历，学士学位，年龄30周岁及以下",1098106001,3,0,3]
[null,"丰城市第四人民医院","医师","临床医学（100201K）专业，全日制大学本科学历，学士学位，年龄30周岁及以下",1098106002,4,0,4]
[null,"丰城市第四人民医院","医师","麻醉学(100202TK)专业，全日制大学本科学历，学士学位，年龄30周岁及以下",1098106003,1,0,1]
[null,"丰城市综合监督执法局","公卫医师","卫生监督(100404TK)专业，全日制大学本科学历，学士学位，年龄30周岁及以下",3098107001,1,0,1]
[null,"丰城市血防站","影像医师","临床医学（100201K）或医学影像学(100203TK)专业，全日制大学本科学历，学士学位，年龄30周岁及以下",1098108001,2,0,2]
[null,"丰城市血防站","公卫医师","预防医学专业(100401K)，全日制大学本科学历，学士学位，年龄30周岁及以下",3098108003,1,0,1]
[null,"丰城市人民医院医共体秀市卫生院","妇产科医师","临床医学专业(100201K)，全日制大学本科学历，学士学位，年龄30周岁及以下",1098110001,1,0,1]
[null,"丰城市人民医院医共体淘沙卫生院","妇产科医师","临床医学专业(100201K)，全日制大学本科学历，学士学位，年龄30周岁及以下",1098111001,1,0,1]
[null,"丰城市人民医院医共体尚庄卫生院","妇产科医师","临床医学专业(100201K)，全日制大学本科学历，学士学位，年龄30周岁及以下",1098112001,1,0,1]
[null,"丰城市人民医院医共体孙渡卫生院","医师","临床医学专业(100201K)，全日制大学本科学历，学士学位，年龄30周岁及以下",1098113001,1,0,1]
[null,"丰城市人民医院医共体杜市卫生院","医师","临床医学专业(100201K)，全日制大学本科学历，学士学位，年龄30周岁及以下",1098114001,1,0,1]
[null,"丰城市人民医院医共体河洲卫生院","医师","临床医学专业(100201K)，全日制大学本科学历，学士学位，年龄30周岁及以下",1098115001,1,0,1]
[null,"丰城市人民医院医共体拖船卫生院","医师","临床医学专业(100201K)，全日制大学本科学历，学士学位，年龄30周岁及以下",1098116001,1,0,1]
[null,"丰城市人民医院医共体荷湖卫生院","医师","临床医学专业(100201K)，全日制大学本科学历，学士学位，年龄30周岁及以下",1098117001,1,0,1]
[null,"丰城市人民医院医共体丽村卫生院","医师","临床医学专业(100201K)，全日制大学本科学历，学士学位，年龄30周岁及以下",1098118001,1,0,1]
[null,"丰城市人民医院医共体洛市卫生院","医师","临床医学专业(100201K)，全日制大学本科学历，学士学位，年龄30周岁及以下",1098119001,1,0,1]
[null,"丰城市人民医院医共体铁路卫生院","医师","临床医学(100201K)，全日制大学本科学历，学士学位，年龄30周岁及以下",1098120001,1,0,1]
[null,"丰城市人民医院医共体石滩卫生院","医师","临床医学(100201K)，全日制大学本科学历，学士学位，年龄30周岁及以下",1098121001,1,0,1]
[null,"丰城市中医院医共体白土卫生院","医师","临床医学(100201K)，全日制大学本科学历，学士学位，年龄30周岁及以下",1098122001,1,0,1]
[null,"丰城市中医院医共体筱塘卫生院","医师","临床医学(100201K)，全日制大学本科学历，学士学位，年龄30周岁及以下",1098123001,1,0,1]
[null,"丰城市人民医院医共体尚庄卫生院","医师","临床医学专业(100201K)，全日制大学本科学历，学士学位，年龄30周岁及以下",1098124001,1,0,1]
[null,"丰城市人民医院医共体孙渡卫生院","麻醉医师","麻醉学(100202TK)或临床医学(100201K)专业，全日制大学本科学历，学士学位，年龄30周岁及以下",1098125001,1,0,1]
[null,"丰城市人民医院医共体桥东卫生院","麻醉医师","麻醉学(100202TK)或临床医学(100201K)专业，全日制大学本科学历，学士学位，年龄30周岁及以下",1098126001,1,0,1]
[null,"丰城市人民医院医共体泉港卫生院","医师","中西医临床医学专业（100601K），全日制大学本科学历，学士学位，年龄30周岁及以下",5098129001,1,0,1]
[null,"丰城市人民医院医共体河洲卫生院","中医师","中医学专业（100501K），全日制大学本科学历，学士学位，年龄30周岁及以下",4098127001,1,0,1]
[null,"丰城市妇幼保健院","医师","临床医学专业（100201K），全日制大学本科学历，学士学位，年龄30周岁及以下",1098103001,5,4,1]
[null,"丰城市妇幼保健院","医师","临床医学专业（100201K），全日制大学本科学历，学士学位，年龄30周岁及以下",1098103002,2,1,1]
[null,"丰城市妇幼保健院","卫生信息员","卫生信息管理专业(620604)，全日制大专及以上学历，学士学位，年龄30周岁及以下",3098103004,2,1,1]
[null,"丰城市血防站","医师","临床医学专业（100201K），全日制大学本科学历，学士学位，年龄30周岁及以下",1098108002,3,1,2]
["铜鼓县","铜鼓县卫生计生综合监督执法局","卫生监督员","公共卫生与卫生管理类专业(6206)，全日制大专及以上学历，年龄30周岁及以下。",3092605001,1,0,1]
[null,"铜鼓县港口乡卫生院","临床医生","临床医学专业（620101K），全日制大专及以上学历，年龄30周岁及以下。",1092606001,1,0,1]
[null,"铜鼓县高桥乡卫生院","临床医生","临床医学专业（620101K），全日制大专及以上学历，年龄30周岁及以下。",5092607002,1,0,1]
[null,"铜鼓县带溪乡卫生院","临床医生","临床医学专业（620101K），全日制大专及以上学历，年龄30周岁及以下。",1092608001,1,0,1]
[null,"铜鼓县大塅镇中心卫生院","口腔科医生","口腔医学专业（620102K），全日制大专及以上学历，年龄30周岁及以下。",2092609002,1,0,1]
["宜春市","宜春市人民医院","核医学科影像诊断医生","全日制大学本科学历，学士学位，30周岁及以下，具有执业医师资格证。",1090001002,1,0,1]
[null,"宜春市第三人民医院","内科医师","临床医学100201K专业,全日制大学本科学历，内科中级以上职称，35周岁以下",1090002002,1,0,1]
[null,"宜春学院第二附属医院","外科医师","全日制本科学历，临床医师专业（100201K）毕业，30周岁以下，具有执业医师资格证或住院医师规范化培训合格证书",1090005007,2,1,1]
[null,"宜春学院第二附属医院","儿科医师","全日制本科学历，临床医师专业（100201K）毕业，30周岁以下，具有执业医师资格证或住院医师规范化培训合格证书",1090005008,1,0,1]
[null,"宜春学院第二附属医院","医学影像","全日制大专及以上学历，医学影像学专业（620403）毕业，35周岁以下，具有执业医师资格证",8090005003,4,1,3]
[null,"宜春学院第二附属医院","社区临床医师","全日制本科学历，社区临床医师，35周岁以下，具有全科医师执业证书",1090005006,1,0,1]
[null,"宜春学院第二附属医院","护理学","全日制本科学历，学士学位，护理学专业（101101）毕业，25周岁以下，具有护师资格证",9090005010,2,1,1]
[null,"金园街道社区卫生服务中心","内科医生","全日制大专及以上学历，临床医学类专业（62010k），35周岁以下，需取得执业助理医师及以上资格",1090301002,1,0,1]
["上饶市市直","上饶市第二人民医院","内科医生","临床医学专业（100201K），全日制大学本科学历，学士学位,年龄在30周岁及以下",1110001002,2,1,1]
[null,"上饶市第二人民医院","外科医生","临床医学专业（100201K），全日制大学本科学历，学士学位,年龄在30周岁及以下",1110001003,2,0,2]
[null,"上饶市第二人民医院","传染科医生","临床医学专业（100201K），全日制大学本科学历，学士学位,年龄在30周岁及以下",1110001004,4,0,4]
[null,"上饶市中心血站","检验人员","医学检验技术专业（101001），全日制大学本科学历，学士学位，年龄在30周岁以下，取得初级及以上专业技术资格证书。",8110007001,2,0,2]
[null,"上饶市疾病预防控制中心","慢性病防治人员","临床医学专业（100201K），全日制大学本科学历，学士学位，年龄35周岁及以下。",1110006001,3,2,1]
["信州区","上饶市立医院","儿科医生","临床医学专业（100201K），全日制大学本科学历，学士学位，年龄30周岁及以下。",1110201001,2,1,1]
[null,"上饶市立医院","眼科医生","临床医学专业（100201K），全日制大学本科学历，学士学位，年龄30周岁及以下，取得执业医师资格证。",1110201006,1,0,1]
[null,"上饶市立医院","耳鼻咽喉科医生","临床医学专业（100201K），全日制大学本科学历，学士学位，年龄30周岁及以下，取得执业医师资格证。",1110201007,1,0,1]
[null,"上饶市立医院","放射科医生","临床医学专业（100201K），全日制大学本科学历，学士学位，年龄30周岁及以下，取得执业医师资格证。",1110201011,2,1,1]
[null,"上饶市立医院","病理科医生","临床医学专业（100201K），全日制大学本科学历，学士学位，年龄30周岁及以下，取得执业医师资格证。",1110201015,1,0,1]
[null,"上饶市中医院","妇产科医生","临床医学专业（100201K），全日制大学本科学历，学士学位，年龄35周岁及以下，取得执业医师资格证。",1110202001,2,0,2]
[null,"上饶市中医院","放射科医生","临床医学专业（620101K），全日制大专及以上学历，年龄35周岁及以下，取得执业医师资格证。",1110202002,2,1,1]
[null,"上饶市中医院","肿瘤内科医生","临床医学专业（100201K），全日制大学本科学历，学士学位，年龄35周岁及以下，取得执业医师资格证。",1110202003,1,0,1]
[null,"信州区沙溪中心卫生院","妇产科医生","临床医学专业（100201K），全日制大学本科学历，学士学位，年龄35周岁及以下，取得执业医师资格证。",1110204001,1,0,1]
["广丰区","广丰区人民医院","感染疾病科医生1","临床医学专业（100201K），全日制大学本科学历，学士学位，年龄35周岁及以下，取得执业医师资格。",1110301002,1,0,1]
[null,"广丰区人民医院","病理科医生","临床医学专业（100201K），全日制大学本科学历，学士学位，年龄35周岁及以下，取得执业医师资格。",1110301005,1,0,1]
[null,"广丰区人民医院","医学影像医生","医学影像学专业（100203TK），全日制大学本科学历，学士学位，年龄35周岁及以下，取得执业医师资格。",1110301006,1,0,1]
[null,"广丰区中医院","麻醉科医生","麻醉学专业（100202TK），全日制大学本科学历，学士学位，年龄35周岁及以下，取得执业医师资格。",1110302002,1,0,1]
[null,"广丰区疾控中心","预防医学医生","预防医学专业（100401K），全日制大学本科学历，学士学位，年龄35周岁及以下。",3110305001,1,0,1]
["上饶市市直","上饶卫生学校","基础医学教师","基础医学专业（100101K），全日制大学本科学历，学士学位，年龄35周岁及以下。",1110008001,4,0,4]
["广丰区","广丰区妇保院","麻醉科医生","麻醉学专业（100202TK），全日制大专及以上学历，年龄35周岁及以下，取得执业医师资格。",1110303002,1,0,1]
["玉山县","玉山县岩瑞镇中心卫生院","公共卫生科医生","预防医学专业（620601K）,全日制大专及以上学历，年龄35周岁及以下，具有执业助理医师及以上资格。",3112305001,1,0,1]
[null,"玉山县中医院","内科医师","临床医学专业（100201K），全日制大学本科学历，学士学位，年龄35周岁及以下，具有执业医师资格。",1112302002,3,0,3]
[null,"玉山县人民医院","病理科医生","临床医学专业（100201K）,全日制大学本科学历,学士学位,年龄35周岁及以下。",1112301003,2,0,2]
[null,"玉山县人民医院","眼科医生","临床医学专业（100201K）,全日制大学本科学历,学士学位,年龄35周岁及以下。",1112301005,2,0,2]
[null,"玉山县人民医院","医学影像诊断医生","医学影像学专业(100203TK),全日制大学本科学历，学士学位，年龄35周岁及以下。",1112301009,2,0,2]
[null,"玉山县血吸虫病防治站","临床医生","临床医学专业（100201k），全日制本科以上，学士学位，35周岁以下，具有执业助理医师及以上资格。",1112304001,3,0,3]
["横峰县","横峰县妇幼保健院","麻醉科医生","麻醉学专业（100202TK），全日制大学本科及以上学历，学士学位，取得执业医师证，年龄35周岁及以下；具备麻醉学专业证书可放宽为临床医学专业（620101K），全日制大专学历。",1112504002,1,0,1]
[null,"横峰县人民医院","放射科诊断医生","医学影像学专业（100203TK），全日制大学本科及以上学历，学士学位，年龄35周岁及以下，取得执业医师证且具备医学影像学专业证书可放宽为临床医学专业（620101K），全日制大专学历。",1112502004,1,0,1]
[null,"横峰县中医院","麻醉科医生","麻醉学专业（100202TK），全日制大学本科及以上学历，学士学位，取得执业医师证，年龄35周岁及以下；具备麻醉学专业证书可放宽为临床医学专业（620101K），全日制大专学历。",1112503001,1,0,1]
[null,"横峰县疾病预防控制中心","传防科医生","预防医学专业（620601K），全日制大专及以上学历，年龄35周岁及以下。",3112505001,1,0,1]
["弋阳县","弋阳县人民医院","脑外科医生","临床医学专业（100201K），全日制大学本科学历，学士学位，年龄35周岁及以下，取得执业医师资格证。",1112601002,2,1,1]
[null,"弋阳县乡镇卫生院","医学影像诊断医生","临床医学专业（620101K），全日制大专及以上学历，年龄35周岁及以下，须具备医学影像专业证书，取得执业助理及以上医师资格证。",1112604003,1,0,1]
[null,"弋阳县乡镇卫生院","公卫医生","公共卫生与卫生管理类专业（6206），全日制大专及以上学历，年龄35周岁及以下，取得执业助理及以上医师资格证。",3112604005,1,0,1]
["铅山县","铅山县乡镇卫生院","公卫医生","预防医学专业(620601K)，全日制大专及以上学历，年龄35周岁及以下。全日制大专及以上学历，年龄在35周岁以下。",3112404003,2,0,2]
[null,"铅山县中医院","住院和门诊医生","临床医学专业(100201K)，全日制大学本科学历,学士学位，年龄35周岁及以下，取得执业医师资格证。",1112402002,1,0,1]
[null,"铅山县妇幼保健院","内科医师或新生儿儿科医生","临床医学专业(100201K)，全日制大学本科学历,学士学位，年龄35周岁及以下，取得执业医师资格证。",1112403001,1,0,1]
["德兴市","德兴市人民医院","临床药师","临床药学专业（100703TK），全日制大学本科学历，学士学位，年龄35周岁及以下，取得临床药师资格证。",6118101005,1,0,1]
[null,"德兴市乡镇卫生院","医学影像诊断医生","临床医学专业（620101K)且取得医学影像专业资格证，或医学影像学专业（100203TK），全日制大专及以上学历，年龄35周岁及以下，取得执业助理及以上医师资格证。",1118103005,1,0,1]
["婺源县","婺源县人民医院","麻醉科医生","临床医学专业(100201K)，麻醉学专业(100202TK),全日制大学本科学历，学士学位，年龄35周岁及以下，取得执业医师资格证。",1113001001,1,0,1]
[null,"婺源县妇幼保健院","妇产科医生","临床医学专业（100201K）, 全日制大学本科学历，学士学位，年龄35周岁及以下。",1113003001,2,0,2]
[null,"婺源县妇幼保健院","儿科医生","临床医学专业（100201K）, 全日制大学本科学历，学士学位，年龄35周岁及以下。",1113003002,2,1,1]
["万年县","万年县人民医院","康复技师","康复治疗学专业（101005），全日制大学本科学历，学士学位，年龄30周岁及以下，取得康复治疗技师职称。",8112901005,2,0,2]
["余干县","余干县妇幼保健计划生育服务中心","儿科（含儿保）医生","临床医学专业（100201K），全日制大学本科学历，学士学位，30周岁及以下，具有执业医师资格证",1112701001,2,0,2]
[null,"余干县疾病预防控制中心","公共卫生与预防医学医生","预防医学专业（100401K），全日制大学本科学历，学士学位，30周岁及以下，具有执业医师资格证",3112702001,3,1,2]
[null,"余干县精神病医院","影像科技师","医学影像技术专业（620403），全日制大专及以上学历，35周岁及以下，具有执业助理及以上医师资格证",8112703002,1,0,1]
[null,"余干县卫生监督执法管理局","卫生计生监督员","卫生监督专业（620603），全日制大专及以上学历，30周岁及以下",3112705001,1,0,1]
[null,"余干县血防站","影像科技师","医学影像技术专业（101003），全日制大学本科学历，学士学位，35周岁及以下，具有执业助理及以上医师资格证",8112707002,1,0,1]
[null,"余干县中医院","麻醉科医生","麻醉学专业（100202TK），全日制大学本科学历，学士学位，35周岁及以下，具有执业医师资格证",1112708001,1,0,1]
[null,"余干县瑞洪镇中心卫生院（新生卫生院）","药剂科医生","药学专业（620301），全日制大专及以上学历，35周岁及以下，限余干县户籍",6112717001,1,0,1]
[null,"余干县枫港乡卫生院（禾山卫生院）","药剂科医生","药学专业（620301），全日制大专及以上学历，35周岁及以下，限余干县户籍",6112719002,1,0,1]
[null,"余干县洪家嘴乡卫生院","公卫科医生","公共卫生管理专业（620602），全日制大专及以上学历，35周岁及以下",3112722002,1,0,1]
[null,"余干县玉亭镇卫生院（华林岗卫生院）","公卫科医生","公共卫生管理专业（620602），全日制大专及以上学历，35周岁及以下",3112724002,1,0,1]
[null,"余干县三塘乡中心卫生院","公卫科医生","公共卫生管理专业（620602），全日制大专及以上学历，35周岁及以下",3112728002,1,0,1]
[null,"余干县康垦卫生院","公卫科医生","公共卫生管理专业（620602），全日制大专及以上学历，35周岁及以下，限余干县户籍",3112731001,1,0,1]
["鄱阳县","江西省鄱阳县中医院","临床医师","临床医学专业（100201K ）， 全日制大学本科学历，学士学位，30周岁及以下",1112801001,2,1,1]
[null,"江西省鄱阳县中医院","影像医生","医学影像学专业（100203TK），全日制大学本科学历，学士学位，30周岁及以下",1112801002,2,1,1]
[null,"鄱阳县妇幼保健院","麻醉科医生","麻醉学专业（100202TK），全日制大学本科学历，学士学位，30周岁及以下",1112803004,1,0,1]
[null,"鄱阳县凰岗防保站","内科医师","临床医学专业（620101K），全日制大专及以上学历，年龄30周岁及以下，取得执业医师资格证",1112807001,1,0,1]
[null,"鄱阳县团林乡卫生院","内科医师","临床医学专业（620101K），全日制大专及以上学历，年龄30周岁及以下，取得执业医师及以上资格证",1112817001,1,0,1]
[null,"鄱阳县游城乡卫生院","检验科检验士","医学检验技术专业（620401），全日制大专及以上学历，年龄30周岁及以下",8112819001,1,0,1]
[null,"鄱阳县柘港乡卫生院","公共卫生科医生","预防医学专业（620601K），全日制大专及以上学历，年龄30周岁及以下",3112820001,1,0,1]
[null,"鄱阳县枧田街乡卫生院","检验科检验士","医学检验技术专业（620401），全日制大专及以上学历，年龄30周岁及以下",8112821001,1,0,1]
[null,"鄱阳县金盘岭镇卫生院","公共卫生科医生","预防医学专业（620601K），全日制大专及以上学历，30周岁及以下",3112825001,1,0,1]
["峡江县","峡江县妇幼保健计划生育服务中心","产科医生","临床医学（620101K），临床医学100201K），妇产科学（100211）,全日制大专及以上学历，35周岁及以下。具有执业医师证。",1082301001,1,0,1]
[null,"峡江县乡镇卫生院","妇产科医生","临床医学专业（620101K）,全日制大专及以上学历，30周岁及以下。",1082302002,2,1,1]
[null,null,"内（外）科医生","临床医学专业（620101K）,全日制大专及以上学历，30周岁及以下。",1082302003,2,1,1]
[null,null,"公共卫生科医生","预防医学专业（620601K）,全日制大专及以上学历，30周岁及以下。",3082302004,2,0,2]
[null,"峡江县中医院","内科医生","临床医学专业（100201K）,全日制大学本科学历，35周岁及以下。2017年及之前毕业生须具有执业医师证（含执业资格考试成绩通过）。",1082303004,1,0,1]
[null,null,"康复科医生","中医学（100501K）,全日制大学本科学历，35周岁及以下。2017年及之前毕业生须具有执业医师证（含执业资格考试成绩通过）。",4082303006,1,0,1]
[null,"峡江县疾病预防控制中心","免规科医生","临床医学专业（620101K）,全日制大专及以上学历，35周岁及以下。具有执业（助理）医师资格证。",1082304003,1,0,1]
[null,null,"免规科医生","预防医学专业（620601K）,全日制大专及以上学历，35周岁及以下。具有执业（助理）医师资格证。",3082304004,1,0,1]
["吉安县","吉安县人民医院","儿科医生","临床医学专业（100201K），全日制大学本科学历；具有执业医师资格学历可放宽至临床医学专业（620101K），全日制大专学历；35周岁及以下。",1082101001,1,0,1]
[null,"吉安县中医院","公共卫生","临床医学（100201K）、预防医学（100401K）专业，全日制大学本科学历；具有执业医师资格学历可放宽至临床医学（620101K）、预防医学专业（620601K），全日制大专学历；35周岁及以下。",3082102006,1,0,1]
[null,"吉安县进修学校","公共卫生","临床医学（100201K）、预防医学（100401K）专业，全日制大学本科学历，30周岁及以下。",3082105001,1,0,1]
[null,"吉安县乡镇卫生院","公共卫生","预防医学（620601K）、临床医学（620101K）、中医学（620103K）、针炙推拿学（620105K）专业，全日制大专及以上学历，或中西医临床医学（100601K）专业，全日制大学本科学历，30周岁及以下。限吉安县户籍。",3082107002,4,3,1]
["吉安市吉州区","吉安市第一人民医院","儿科医生","本科：临床医学（100201K） 全日制大学本科学历，学士学位；35周岁以下",1080201002,1,0,1]
[null,"吉安市第一人民医院","急诊科医生","本科：临床医学（100201K） 全日制大学本科学历，学士学位；36周岁以下",1080201003,1,0,1]
[null,"吉安市第一人民医院","重症医学科医生","本科：临床医学（100201K） 全日制大学本科学历，学士学位；37周岁以下",1080201004,1,0,1]
["井冈山市","井冈山市妇幼保健计划生育服务中心","儿科岗位","临床医学类专业（1002），全日制大学本科学历，35周岁及以下，有临床执业医师资格证。",1088101001,1,0,1]
[null,null,"妇产科岗","临床医学类专业（1002），全日制大学本科学历，35周岁及以下，有临床执业医师资格证。",1088101002,1,0,1]
[null,"井冈山市市直医院、乡镇卫生院、社区卫生服务中心","内科医师","临床医学类专业（1002），全日制大学本科学历，35周岁及以下。",1088102001,10,0,10]
[null,null,"外科医师","临床医学类专业（1002），全日制大学本科学历，35周岁及以下。",1088102002,10,0,10]
[null,null,"妇产科医师","临床医学类专业（1002），全日制大学本科学历，35周岁及以下。",1088102003,7,0,7]
[null,null,"儿科医师","临床医学类专业（1002），全日制大学本科学历，35周岁及以下。",1088102004,7,0,7]
[null,null,"病理科医师","临床医学类专业（1002），全日制大学本科学历，35周岁及以下。",1088102005,2,0,2]
[null,null,"口腔科医师","口腔医学类专业（1003），全日制大学本科学历，35周岁及以下。",2088102007,1,0,1]
[null,null,"眼科医师","临床医学类专业（1002），全日制大学本科学历，35周岁及以下。",1088102008,1,0,1]
[null,null,"耳鼻咽喉科医师","临床医学类专业（1002），全日制大学本科学历，35周岁及以下。",1088102009,1,0,1]
[null,null,"检验科技师","医学检验技术专业（101001），全日制大学本科学历，30周岁及以下。",8088102010,2,0,2]
[null,null,"影像医师","临床医学类专业（1002），全日制大学本科学历，35周岁及以下。",1088102011,4,0,4]
[null,null,"超声科医师","临床医学类专业（1002），全日制大学本科学历，35周岁及以下。",1088102012,3,0,3]
[null,null,"麻醉医师","临床医学类专业（1002），全日制大学本科学历，35周岁及以下。",1088102013,2,0,2]
[null,null,"康复科医师","临床医学类专业（1002），全日制大学本科学历，35周岁及以下。",1088102014,2,0,2]
["遂川县","遂川县乡镇卫生院","儿科医生","临床医学专业（620101K），全日制大专及以上学历，30周岁及以下。限遂川县户籍",1082702001,5,2,3]
["万安县","万安县人民医院","临床医生","本科：临床医学（100201K），全日制本科及以上学历，年龄在30周岁以内",1082801003,3,2,1]
["永丰县","永丰县人民医院","骨科医生","临床医学类专业（1002），全日制大学本科学历，30周岁及以下。2016年及之前毕业生须具有执业医师资格。",1082501001,4,0,{"$f":"F732-G732","v":4}]
[null,null,"儿科医生","临床医学类专业（1002），全日制大学本科学历，30周岁及以下。2016年及之前毕业生须具有执业医师资格。",1082501002,4,0,4]
[null,null,"妇产科医生","临床医学类专业（1002），全日制大学本科学历，30周岁及以下。2016年及之前毕业生须具有执业医师资格。",1082501003,4,1,3]
[null,null,"内分泌科医生","临床医学类专业（1002），全日制大学本科学历，30周岁及以下。2016年及之前毕业生须具有执业医师资格。",1082501004,2,1,1]
[null,null,"肿瘤科医生","临床医学类专业（1002），全日制大学本科学历，30周岁及以下。2016年及之前毕业生须具有执业医师资格。",1082501005,2,0,2]
[null,null,"呼吸科医生","临床医学类专业（1002），全日制大学本科学历，30周岁及以下。2016年及之前毕业生须具有执业医师资格。",1082501006,2,1,1]
[null,null,"脑外科医生","临床医学类专业（1002），全日制大学本科学历，30周岁及以下。2016年及之前毕业生须具有执业医师资格。",1082501010,2,0,2]
[null,null,"口腔科医生","口腔医学专业（100301K），全日制大学本科学历，30周岁及以下。2016年及之前毕业生须具有执业医师资格。",2082501011,1,0,1]
[null,null,"康复科医生","针灸推拿学专业（100502K），全日制大学本科学历，30周岁及以下。2016年及之前毕业生须具有执业医师资格。",1082501012,1,0,1]
[null,null,"病理诊断医生","临床医学专业（620101K），全日制大专及以上学历，30周岁及以下。2016年及之前毕业生须具有执业（助理）医师资格。",1082501017,1,0,1]
[null,"永丰县中医院","临床医生","临床医学类专业（1002），全日制研究生学历，硕士学位，35周岁及以下。",1082502001,1,0,1]
[null,null,"外科医生","临床医学类专业（1002），全日制大学本科学历，35周岁及以下。",1082502002,5,3,2]
[null,null,"中医医生1","中医学类专业（1005），全日制研究生学历，硕士学位，35周岁及以下。",4082502004,1,0,1]
[null,null,"中药1","中药学类专业（1008），全日制研究生学历，硕士学位，35周岁及以下。",7082502013,1,0,1]
[null,"永丰县妇幼保健院","妇产医生","临床医学类专业（1002），全日制大学本科学历，30周岁及以下。",1082503001,2,0,2]
[null,"永丰县疾病预防控制中心","预防医学医生","预防医学专业（620601K)，全日制大专及以上学历，35周岁及以下。",3082504001,2,1,1]
[null,"永丰县乡镇卫生院","妇产科医生","临床医学专业（620101K)，全日制大专及以上学历，35周岁及以下。取得执业助理医师资格证书。",1082507001,2,0,2]
["永新县","永新县人民医院","肿瘤内科医生","临床医学专业（100201K），全日制大学本科学历，30周岁及以下。",1083002007,2,1,1]
[null,"永新县人民医院","烧伤科医生","临床医学专业（100201K），全日制大学本科学历，30周岁及以下。",1083002009,2,1,1]
[null,"永新县人民医院","肛肠外科医生","临床医学专业（100201K），全日制大学本科学历，30周岁及以下。",1083002010,2,1,1]
[null,"永新县人民医院","中医科医生","中医学专业（100501K)，全日制大学本科学历，30周岁及以下。",4083002003,2,1,1]
[null,"永新县妇幼保健院","妇产科医生","临床医学专业（620101K），全日制大专及以上学历，30周岁及以下。大专学历须取得执业医师资格证。",1083003002,3,1,2]
[null,"永新县社区卫生服务中心","临床医生","临床医学专业（620101K），全日制大专及以上学历，35周岁及以下。大专学历须取得执业医师资格证。",1083006001,4,2,2]
["安福县","安福县中医院","放射诊断医生","临床医学(620101K)专业，全日制大专及以上学历，或医学影像学（100203TK）、放射医学（100206TK）专业，全日制大学本科学历，具有执业医师证，35周岁及以下。",1082901006,1,0,1]
[null,"安福县人民医院","儿科医生","临床医学(100201K)专业，全日制大学本科学历，具有执业医师证，35周岁及以下。",1082902003,1,0,1]
[null,"安福县人民医院","妇产科医生","临床医学(100201K)专业，全日制大学本科学历，具有执业医师证，35周岁及以下。",1082902004,1,0,1]
[null,"安福县人民医院","重症医学科医生","临床医学专业(100201K)，全日制大学本科学历，具有执业医师证，35周岁及以下。",1082902005,1,0,1]
[null,"安福县人民医院","口腔医生","口腔医学专业(100301K)，全日制大学本科学历，具有执业医师证，35周岁及以下。",2082902008,1,0,1]
["吉水县","吉水县人民医院","影像诊断医生","医学影像学专业（100203TK)，全日制大学本科学历，30周岁及以下。",1082201001,4,0,4]
[null,null,"口腔医生","口腔医学类专业（1003)，全日制大学本科学历，30周岁及以下。",2082202003,2,0,2]
[null,null,"临床医生2","临床医学专业（100201K)，全日制大学本科学历，30周岁及以下。",1082202005,4,0,4]
[null,"吉水县中医医院","临床医师","临床医学专业（100201K)，全日制大学本科学历，30周岁及以下。",1082203001,10,3,7]
[null,null,"口腔科医师","口腔医学类专业（1003），全日制大学本科学历，30周岁及以下。",2082203003,1,0,1]
[null,"吉水县妇幼保健计划生育服务中心","妇产科医生","临床医学专业（100201K)，全日制大学本科学历，25周岁及以下。",1082204001,2,0,2]
[null,null,"麻醉科医生","麻醉学专业（100202TK），临床医学专业（100201K)，全日制大学本科学历，25周岁及以下。",1082204002,1,0,1]
[null,null,"保健科医生","妇幼保健医学专业（100403TK)，全日制大学本科学历，25周岁及以下。",1082204003,2,0,2]
["吉水县螺田镇","吉水县螺田镇卫生院","临床医师","临床医学专业（620101K），全日制大专及以上学历，35周岁及以下。限吉水县户籍",1082214001,1,0,1]
["新干县","新干县人民医院","耳鼻喉科医生","临床医学专业（100201K），全日制大学本科学历，35周岁及以下。","1082401002",1,0,1]
[null,"新干县人民医院","麻醉科医生","临床医学（100201K）、麻醉学（100202TK）专业，全日制大学本科学历，35周岁及以下。","1082401004",1,0,1]
[null,"新干县人民医院","外科医生","临床医学专业（100201K），全日制大学本科学历，35周岁及以下。","1082401006",2,1,1]
[null,"新干县中医医院","麻醉科医生","麻醉学（100202TK）、临床医学（100201K）专业，全日制大学本科学历，35周岁及以下。","1082402002",1,0,1]
[null,"新干县中医医院","大外科医生","临床医学（100201K），全日制大学本科学历，35周岁及以下。","1082402005",1,0,1]
[null,"新干县妇幼保健计划生育服务中心","大内科医生","临床医学（100201K），全日制大学本科学历，35周岁及以下。","1082403002",1,0,1]
[null,"新干县妇幼保健计划生育服务中心","妇产科医生","临床医学（100201K），全日制大学本科学历，35周岁及以下。","1082403003",1,0,1]
[null,"新干县疾病预防控制中心","预防医学岗医生","预防医学（100401K），全日制大学本科学历，35周岁及以下。","3082404001",1,0,1]
[null,"新干县第三人民医院","内科医生","临床医学专业（620101K），全日制大专及以上学历，35周岁及以下。","1082406001",2,1,1]
[null,"三湖镇中心卫生院","妇产科医生","临床医学专业（620101K），全日制大专及以上学历，35周岁及以下。","1082408002",1,0,1]
[null,"三湖镇中心卫生院","公卫科医生","预防医学专业（620601K），全日制大专及以上学历，35周岁及以下。","3082408003",1,0,1]
[null,"荷浦乡卫生院","妇产科医生","临床医学专业（620101K），全日制大专及以上学历，35周岁及以下。","1082409001",1,0,1]
[null,"城上乡卫生院","内科医生","临床医学专业（620101K），全日制大专及以上学历，35周岁及以下。","1082411001",1,0,1]
[null,"麦㙦镇中心卫生院","公卫科医生","预防医学专业（620601K），全日制大专及以上学历，35周岁及以下。","3082412002",1,0,1]
[null,"麦㙦镇中心卫生院","影像科医生","临床医学（620101K）专业，全日制大专及以上学历，或医学影像学（100203TK）、放射医学（100206TK）专业，全日制大学本科学历，35周岁及以下。","1082412003",1,0,1]
[null,"七琴镇中心卫生院","妇产科医生","临床医学专业（620101K），全日制大专及以上学历，35周岁及以下。","1082413002",1,0,1]
[null,"潭丘乡中心卫生院","影像科医生","临床医学（620101K）专业，全日制大专及以上学历，或医学影像学（100203TK）、放射医学（100206TK）专业，全日制大学本科学历，35周岁及以下。","1082414002",1,0,1]
[null,"溧江镇中心卫生院","影像科医生","临床医学（620101K）专业，全日制大专及以上学历，或医学影像学（100203TK）、放射医学（100206TK）专业，全日制大学本科学历，35周岁及以下。","1082415001",1,0,1]
["吉安市","吉安市第三人民医院","精神科医生","精神病与精神卫生学专业(100205)，全日制研究生学历，硕士学位，具有执业医师资格，30周岁及以下。",1080002001,3,0,3]
[null,"吉安市第三人民医院","全科医生","临床医学（100201K）、内科学（100201）专业，全日制大学本科学历，具有执业医师资格，30周岁及以下。",1080002005,2,1,1]
[null,"吉安市第三人民医院","影像医生2","医学影像学（100203TK）、影像医学与核医学（100207）专业，全日制大学本科学历，30周岁及以下。",8080002004,1,0,1]
[null,"吉安市第三人民医院","临床医生1","临床医学（100201K）专业，全日制大学本科学历，具有执业医师资格，30周岁及以下。",1080002006,2,1,1]
[null,"吉安市妇幼保健院","儿科医生","临床医学类专业（1002），全日制研究生学历，年龄30周岁及以下。",1080003001,3,0,3]
[null,"吉安市妇幼保健院","妇产科医生","临床医学类专业（1002），全日制研究生学历，年龄30周岁及以下。",1080003002,3,0,3]
[null,"吉安市妇幼保健院","辅助生殖科医生","临床医学类专业（1002），全日制研究生学历，年龄30周岁及以下。",1080003003,1,0,1]
[null,"吉安市妇幼保健院","辅助生殖科技师","临床检验诊断学专业（100208），全日制研究生学历，年龄30岁及以下。",8080003004,1,0,1]
[null,"吉安市妇幼保健院","眼科医生","眼视光学医学专业（100204TK），全日制大学本科学历，年龄30周岁及以下。",1080003006,1,0,1]
["抚州市","抚州市第一人民医院","全科医师","临床医学（100201K）专业，全日制大学本科学历，学士学位，年龄35周岁及以下。若取得执业医师资格证，执业范围须为全科医学专业。",1100001002,2,1,1]
[null,"抚州市妇幼保健院（市第二人民医院）","内科医生","临床医学（100201k）专业，全日制大学本科学历，学士学位，年龄35周岁及以下。具有医师资格证及执业医师证，执业范围内科专业。",1100002001,3,0,3]
[null,"抚州市妇幼保健院（市第二人民医院）","神经外科医生","临床医学（100201k）专业，全日制大学本科学历，学士学位，年龄35周岁及以下。具有医师资格证及执业医师证，执业范围外科专业。",1100002003,1,0,1]
[null,"抚州市妇幼保健院（市第二人民医院）","新生儿科医生","临床医学（100201k）专业，全日制大学本科学历，学士学位，年龄35周岁及以下。具有医师资格证及执业医师证，执业范围儿科专业。",1100002004,4,0,4]
[null,"抚州市妇幼保健院（市第二人民医院）","妇产科医生","临床医学（100201k）专业，全日制大学本科学历，学士学位，年龄35周岁及以下。具有医师资格证及执业医师证，执业范围妇产科专业。",1100002005,4,3,1]
[null,"抚州市妇幼保健院（市第二人民医院）","儿科医生","临床医学（100201k）专业，全日制大学本科学历，学士学位，年龄35周岁及以下。具有医师资格证及执业医师证，执业范围儿科专业。",1100002006,3,0,3]
[null,"抚州市妇幼保健院（市第二人民医院）","儿童保健科医生","临床医学（100201k）专业，全日制大学本科学历，学士学位，年龄35周岁及以下。具有医师资格证及执业医师证，执业范围儿科专业。",1100002007,2,0,2]
[null,"抚州市妇幼保健院（市第二人民医院）","放射科医生","临床医学（620101K）专业，全日制大专及以上学历，或医学影像学（100203TK）专业，全日制大学本科学历，年龄35周岁及以下。具有医师资格证及执业医师证，执业范围为医学影像与放射治疗。",1100002008,2,0,2]
[null,"抚州市妇幼保健院（市第二人民医院）","功能科医生","临床医学（620101K）专业，全日制大专及以上学历，或医学影像学（100203TK）专业，全日制大学本科学历，年龄35周岁及以下。具有医师资格证及影像执业医师证。",1100002009,1,0,1]
[null,"抚州市妇幼保健院（市第二人民医院）","急诊科医生","临床医学（100201k）专业，全日制大学本科学历，学士学位，年龄35周岁及以下。具有医师资格证及执业医师证。",1100002011,3,1,2]
[null,"抚州市妇幼保健院（市第二人民医院）","眼科医生","眼视光医学（100204TK）专业，全日制大学本科学历，学士学位，年龄35周岁及以下。具有医师资格证及执业医师证，执业范围眼科或五官科专业。",1100002013,1,0,1]
[null,"抚州市第三医院","精神科医生","临床医学（100201K）、精神医学（100205TK）专业，全日制大学本科学历，学士学位，年龄35周岁及以下。",1100003002,4,0,4]
[null,"抚州市中医院","放射科医师","医学影像学专业（100203TK），全日制大学本科学历，学士学位，年龄35周岁及以下。取得医师资格证。",1100004003,1,0,1]
[null,"抚州市立医院","急诊科医生","临床医学（100201K）专业，全日制大学本科学历，学士学位，年龄35周岁及以下。具有执业医师资格证并注册急诊科专业。",1100005002,2,0,2]
[null,"抚州市立医院","妇产科医生","临床医学（100201K）专业，全日制大学本科学历，学士学位，年龄35周岁及以下。具有执业医师资格证并注册妇产科专业。",1100005004,2,1,1]
[null,"抚州市立医院","儿科医生","临床医学（100201K）专业，全日制大学本科学历，学士学位，年龄35周岁及以下。具有执业医师资格证并注册儿科专业。",1100005005,2,0,2]
[null,"抚州市立医院","耳鼻喉科医生","临床医学（100201K）专业，全日制大学本科学历，学士学位，年龄35周岁及以下。具有执业医师资格证并注册耳鼻喉科专业。",1100005008,2,0,2]
[null,"抚州市立医院","皮肤科医生","临床医学（100201K）专业，全日制大学本科学历，学士学位，年龄35周岁及以下。具有执业医师资格证并注册皮肤科专业。",1100005009,1,0,1]
[null,"抚州市医学科学研究所","B超医生","医学影像学专业（100203TK），全日制大学本科学历，学士学位，年龄35周岁及以下。具有执业医师执业证书(执业范围：医学影像与放射治疗）",1100007001,1,0,1]
[null,"抚州市医学科学研究所","中医内科医生","中医学专业（620103K），全日制大专及以上学历，年龄35周岁及以下。具有中级职称，有执业医师执业证书，执业范围为中医专业。",4100007002,1,0,1]
[null,"抚州市医学科学研究所","内，儿科医生","临床医学专业（620101K），全日制大专及以上学历，年龄35周岁及以下。具有中级职称,有执业医师执业证书，执业范围为内科或者儿科。",1100007003,3,0,3]
[null,"江西中医药高等专科学校附属医院（抚州市第一中医医院）","口腔科医生","口腔医学（100301K）专业，全日制大学本科学历，学士学位，35周岁及以下。口腔主治及以上职称医师。",2100009001,1,0,1]
[null,"江西中医药高等专科学校附属医院（抚州市第一中医医院）","眼科医生","临床医学（100201K）专业，全日制大学本科学历，学士学位，35周岁及以下。眼科主治及以上职称医师。",1100009003,1,0,1]
["临川区","临川区人民医院","急诊科医师","临床医学专业（100201K），全日制大学本科学历，学士学位，年龄30周岁及以下。取得执业医师资格证。",1100201001,2,0,2]
[null,"临川区人民医院","心血管内科医师","临床医学专业（100201K），全日制大学本科学历，学士学位，年龄30周岁及以下。取得执业医师资格证。",1100201002,1,0,1]
[null,"临川区人民医院","ICU医师","临床医学专业（100201K），全日制大学本科学历，学士学位，年龄30周岁及以下。取得执业医师资格证。",1100201003,2,0,2]
[null,"临川区人民医院","耳鼻喉科医师","临床医学专业（100201K），全日制大学本科学历，学士学位，年龄30周岁及以下。取得执业医师资格证。",1100201004,1,0,1]
[null,"临川区人民医院","麻醉科医师","麻醉学专业（100202TK），全日制大学本科学历，学士学位，年龄30周岁及以下。",1100201006,1,0,1]
[null,"临川区人民医院","医学影像科诊断医师","放射医学专业（100206TK）,全日制大学本科学历，学士学位，年龄35周岁及以下。取得执业医师资格证。",1100201007,2,0,2]
[null,"临川区第一人民医院","ICU医师","临床医学专业（100201K），全日制大学本科学历，学士学位，年龄35周岁及以下。取得执业医师资格证。",1100202001,1,0,1]
[null,"临川区第一人民医院","急诊科医师","临床医学专业（100201K），全日制大学本科学历，学士学位，年龄35周岁及以下。取得执业医师资格证。",1100202002,1,0,1]
[null,"临川区第一人民医院","神经外科医师","临床医学专业（100201K），全日制大学本科学历，学士学位，年龄35周岁及以下。取得执业医师资格证，执业范围为外科。",1100202003,1,0,1]
[null,"临川区第一人民医院","耳鼻喉科医师","临床医学专业（100201K），全日制大学本科学历，学士学位，年龄35周岁及以下。取得执业医师资格证。",1100202004,1,0,1]
[null,"临川区第一人民医院","普通放射科医师","放射医学专业（100206TK），全日制大学本科学历，学士学位，年龄35周岁及以下。具有执业医师资格证。",1100202006,1,0,1]
[null,"临川区第一人民医院","影像医师","医学影像学专业（100203TK），全日制大学本科学历，学士学位，年龄35周岁及以下。具有执业医师资格证。",1100202007,1,0,1]
[null,"临川区第二人民医院","五官科医师","临床医学专业（100201K），全日制大学本科学历，学士学位，年龄35周岁及以下。具有执业医师资格证。",1100203001,1,0,1]
[null,"临川区第二人民医院","医学影像技术人员","医学影像技术专业（101003），全日制大学本科学历，学士学位，年龄35周岁及以下。",8100203003,1,0,1]
[null,"临川区第二人民医院","妇产科医师","临床医学专业（100201K），全日制大学本科学历，学士学位，年龄35周岁及以下。取得执业医师资格证，执业范围妇产科。",1100203004,1,0,1]
[null,"临川区第二人民医院","内科医师","临床医学专业（100201K），全日制大学本科学历，学士学位，年龄35周岁及以下。取得执业医师资格证。",1100203005,1,0,1]
[null,"临川区第二人民医院","急诊科医师","临床医学专业（100201K），全日制大学本科学历，学士学位，年龄35周岁及以下。取得执业医师资格证。",1100203006,1,0,1]
[null,"临川区中医院","外科医师","临床医学专业（100201K），全日制大学本科学历，学士学位，年龄35周岁及以下。取得执业医师资格证。",1100204001,1,0,1]
[null,"临川区中医院","耳鼻咽喉科医师","临床医学专业（100201K），全日制大学本科学历，学士学位，年龄35周岁及以下。取得执业医师资格证。",1100204004,1,0,1]
[null,"临川区中医院","影像科医生","医学影像学专业（100203TK），全日制大学本科学历，学士学位，年龄35周岁及以下。具有执业医师资格证。",1100204006,1,0,1]
[null,"临川区妇幼保健计划生育服务中心","妇产科医师","临床医学专业（100201K），全日制大学本科学历，学士学位，年龄35周岁及以下。取得执业医师资格证，执业范围为妇产科。",1100205001,1,0,1]
[null,"临川区妇幼保健计划生育服务中心","临床医师","临床医学（100201K）专业，全日制大学本科学历，学士学位，年龄35周岁及以下。具有执业医师资格证，执业范围为外科。",1100205002,1,0,1]
[null,"临川区妇幼保健计划生育服务中心","儿科医师","临床医学专业（100201K），全日制大学本科学历，学士学位，年龄35周岁及以下。取得执业医师资格证，执业范围为儿科。",1100205003,1,0,1]
[null,"临川区文昌桥社区卫生服务中心","中医师","中医学专业（100501K），全日制大学本科学历，学士学位，年龄35周岁及以下。取得执业医师资格证。",4100208001,1,0,1]
[null,"临川区文昌桥社区卫生服务中心","内科医师","临床医学专业（100201K），全日制大学本科学历，学士学位，年龄35周岁及以下。取得执业医师资格证。",1100208002,1,0,1]
[null,"临川区上顿渡社区卫生服务中心","检验师","医学检验技术专业（101001），全日制大学本科学历，学士学位，年龄30周岁及以下。具有检验师职称。",8100209001,1,0,1]
[null,"临川区腾桥镇邓坊卫生院","临床医师","临床医学专业（100201K），全日制大学本科学历，学士学位，年龄35周岁及以下。取得执业医师资格证。","1100211001",1,0,1]
[null,"临川区罗湖镇华溪卫生院","临床医师","临床医学专业（100201K），全日制大学本科学历，学士学位，年龄35周岁及以下。取得执业医师资格证。",1100212001,1,0,1]
[null,"临川区高坪镇三桥卫生院","临床医师","临床医学专业（100201K），全日制大学本科学历，学士学位，年龄35周岁及以下。取得执业医师资格证。",1100213001,1,0,1]
[null,"临川区高坪镇中心卫生院","临床医师","临床医学专业（100201K），全日制大学本科学历，学士学位，年龄35周岁及以下。取得执业医师资格证。",1100214001,1,0,1]
[null,"临川区秋溪镇中心卫生院","临床医师","临床医学专业（100201K），全日制大学本科学历，学士学位，年龄35周岁及以下。取得执业医师资格证。",1100215001,1,0,1]
[null,"临川区鹏田乡卫生院","临床医师","临床医学（100201K）专业，全日制大学本科学历，学士学位，年龄35周岁及以下。具有执业医师资格证。",1100217001,1,0,1]
[null,"临川区桐源乡卫生院","药剂师","药学专业（100701），全日制大学本科学历，学士学位，年龄35周岁及以下。取得药剂师职称。",6100218001,1,0,1]
[null,"临川区东馆镇卫生院","中医","中医学（100501K），全日制大学本科学历，学士学位，年龄35周岁及以下。具有执业医师资格证。",4100219001,1,0,1]
[null,"临川区云山镇卫生院","临床医师","临床医学专业（100201K），全日制大学本科学历，学士学位，年龄30周岁及以下。具有执业医师资格证。",1100221001,2,0,2]
[null,"临川区云山镇卫生院","公卫医师","预防医学专业（100401K），全日制大学本科学历，学士学位，年龄30周岁及以下。具有执业医师资格证。",3100221002,1,0,1]
[null,"临川区云山镇卫生院","医学影像医师","临床医学专业（620101K)，全日制大专及以上学历，或医学影像学专业（100203TK），全日制大学本科学历，年龄30周岁及以下。具有执业医师资格证，执业范围为医学影像与放射治疗。",1100221004,1,0,1]
[null,"临川区荣山镇卫生院","临床医师","临床医学专业（100201K），全日制大学本科学历，学士学位，年龄35周岁及以下。具有执业医师资格证。",1100222001,2,0,2]
[null,"临川区青泥卫生院","临床医师","临床医学专业（100201K),全日制大学本科学历，学士学位，年龄35周岁及以下。",1100223002,1,0,1]
[null,"临川区大岗镇中心卫生院","临床医师","临床医学专业（100201K），全日制大学本科学历，学士学位，年龄35周岁及以下。具有执业医师资格证。",1100224001,1,0,1]
[null,"临川区温泉镇红桥卫生院","药剂师","药学类专业（1007），全日制大学本科学历，学士学位，年龄30周岁及以下。取得药剂师职称。",6100225001,1,0,1]
[null,"临川区罗针镇中心卫生院","临床医生","临床医学专业（100201K），全日制大学本科学历，学士学位，年龄30周岁及以下。具有执业医师资格证。",1100226001,2,0,2]
[null,"临川区罗针镇中心卫生院","公卫医生","预防医学专业（100401K），全日制大学本科学历，学士学位，年龄30周岁及以下。具有执业医师资格证。",3100226002,1,0,1]
["崇仁县","崇仁县妇幼保健计划生育服务中心（崇仁县妇幼保健院）","妇产科医生","临床医学专业（620101k），全日制大专及以上学历，35周岁及以下。取得执业医师证。",1102401001,3,1,2]
[null,"崇仁县妇幼保健计划生育服务中心（崇仁县妇幼保健院）","儿科医生","临床医学专业（620101k），全日制大专及以上学历，35周岁及以下。取得执业医师证。",1102401002,3,0,3]
[null,"崇仁县妇幼保健计划生育服务中心（崇仁县妇幼保健院）","CT，放射医生","医学影像学专业（100203TK)，全日制大学本科学历，学士学位，35周岁及以下。",1102401004,2,0,2]
[null,"崇仁县人民医院","CT，核磁共振医生","医学影像学专业(100203TK)，全日制大学本科学历，学士学位，35周岁及以下",1102402002,3,0,3]
[null,"崇仁县中医院","医学影像医生","医学影像学专业（100203TK），全日制大学本科学历，学士学位，35周岁及以下，取得执业医师资格证。",1102403001,1,0,1]
[null,"崇仁县中医院","麻醉医生","临床医学专业（620101k），全日制大专及以上学历，或麻醉学专业（100202TK），全日制大学本科学历，35周岁及以下，取得执业医师资格证。",1102403002,1,0,1]
[null,"崇仁县卫生计生综合监督执法局","卫生监督员","卫生监督专业（620603)，全日制大专及以上学历，35周岁及以下",3102404001,1,0,1]
[null,"崇仁县疾病预防控制中心","预防医学医生","预防医学专业（620601K)，全日制大专及以上学历，35周岁及以下",3102405001,2,0,2]
[null,"崇仁县巴山镇防保站","医师","临床医学专业（620101k），全日制大专及以上学历，35周岁及以下，取得执业助理医师或执业医师资格证。",1102407001,1,0,1]
[null,"崇仁县河上镇中心卫生院","检验人员","医学检验技术专业（620401），全日制大专及以上学历，35周岁及以下",8102409001,1,0,1]
[null,"崇仁县礼陂镇中心卫生院","中医医生","中医学（620103K)，全日制大专及以上学历，35周岁及以下。取得助理医师或执业医师证。",4102410002,1,0,1]
[null,"崇仁县马鞍镇中心卫生院","临床医生","临床医学专业（620101k），全日制大专及以上学历，35周岁及以下，取得助理医师或执业医师资格证。",1102411001,1,0,1]
[null,"崇仁县石庄乡卫生院","公卫人员","公共卫生管理专业(620602)，全日制大专学历，35周岁及以下",3102413002,1,0,1]
[null,"崇仁县相山镇中心卫生院山斜分院","临床医生","临床医学专业（620101K），全日制大专及以上学历，35周岁及以下，取得助理医师或执业医师资格证。",1102417001,1,0,1]
["乐安县","乐安县第二人民医院","影像科医师","临床医学专业（620101K），全日制大专及以上学历，或医学影像学专业（100203TK），全日制大学本科学历，年龄35周岁及以下，具有执业助理或执业医师资格,执业范围为医学影像与放射治疗，限乐安户籍",1102504003,1,0,1]
[null,"乐安县金竹畲族乡金竹卫生院","临床医师","临床医学专业（620101K），全日制大专及以上学历，年龄35周岁及以下。具有执业医师资格证，限乐安户籍",1102507002,1,0,1]
[null,"乐安县湖坪中心卫生院","临床医师","临床医学专业（620101K),全日制大专及以上学历,35周岁及以下，具有执业医师资格证",1102509001,1,0,1]
[null,"乐安县湖坪中心卫生院","B超医师","临床医学专业（620101K）,全日制大专及以上学历,35周岁及以下。具有执业助理或执业医师资格证，执业范围为医学影像与放射治疗",1102509002,1,0,1]
["宜黄县","宜黄县人民医院","临床医生","临床医学专业（100201K)，全日制本科学历，学士学位证，30周岁及以下。",1102601001,3,2,1]
[null,"宜黄县人民医院","麻醉科医生","麻醉学专业（100202TK），全日制本科学历，学士学位证，35周岁及以下。具有执业医师资格证，执业范围为外科专业",1102601004,1,0,1]
[null,"宜黄县人民医院","妇产科医生","临床医学专业（620101K)，全日制大专及以上学历，35周岁及以下。具有执业医师资格证，执业范围为妇产专业",1102601005,1,0,1]
[null,"宜黄县中医院","临床医生","临床医学专业（620101K)，全日制大专及以上学历，35周岁及以下，具有执业医师资格证",1102602001,2,0,2]
[null,"宜黄县妇幼保健和计划生育服务中心","临床医师","临床医学专业（620101K)，全日制大专及以上学历，35周岁及以下，具有执业医师资格证",1102603001,1,0,1]
[null,"宜黄县妇幼保健和计划生育服务中心","临床影像医师","临床医学专业（620101K)，全日制大专及以上学历，或医学影像学专业（100203TK），全日制大学本科学历，35周岁及以下。具有执业助理医师资格证或执业医师资格证，执业范围为医学影像及放射专业",1102603002,1,0,1]
[null,"宜黄县妇幼保健和计划生育服务中心","临床麻醉医师","临床医学专业（620101K），全日制大专及以上学历，或麻醉学专业（100202TK），全日制大学本科学历，35周岁及以下。具有执业助理医师资格证或执业医师资格证，执业范围为外科专业",1102603003,1,0,1]
["南丰县","南丰县人民医院","神经外科医师","临床医学专业（100201k），全日制大学本科学历，学士学位,30周岁及以下。",1102301006,1,0,1]
[null,"南丰县人民医院","麻醉科医师","麻醉学专业（100202TK），全日制大学本科学历，学士学位,25周岁及以下。取得执业医师资格证者年龄可放宽至35周岁及以下",1102301008,1,0,1]
[null,"南丰县中医院","内科医师","临床医学专业(100201K),全日制大学本科学历，学士学位,年龄30周岁及以下。",1102302001,2,0,2]
[null,"南丰县中医院","放射科医师","放射医学专业(100206TK),全日制大学本科学历，学士学位，年龄30周岁及以下。",1102302005,1,0,1]
[null,"南丰县妇幼保健计划生育服务中心","儿科医师","临床医学专业（620101K），全日制大专及以上学历，年龄30周岁及以下。取得执业医师资格证",1102303001,1,0,1]
[null,"南丰县妇幼保健计划生育服务中心","内科医生","临床医学专业（620101K），全日制大专及以上学历，年龄30周岁及以下。取得执业医师资格证",1102303002,1,0,1]
["黎川县","黎川县人民医院","儿科医生","临床医学（100201K）专业，全日制大学本科学历，学士学位，35周岁及以下。",1102211002,1,0,1]
[null,"黎川县人民医院","妇产科医生","临床医学（100201K）专业，全日制大学本科学历，学士学位，35周岁及以下。",1102211004,1,0,1]
[null,"黎川县人民医院","外科医生","临床医学（100201K）专业，全日制大学本科学历，学士学位，35周岁及以下。",1102211005,2,0,2]
[null,"黎川县人民医院","五官科医生","临床医学（620101K）专业，全日制大专及以上学历，30周岁及以下。取得执业医师证",1102211006,2,1,1]
[null,"黎川县中医院","外科医生","临床医学(100201K)专业,全日制大学本科学历，学士学位,35周岁及以下。",1102212002,1,0,1]
["南城县","南城县人民医院","口腔科医生","口腔医学（100301K）专业，全日制本科学历，学士学位，年龄35周岁及以下",2102101002,1,0,1]
[null,"南城县人民医院","放射科医生","放射医学（100206TK）专业，全日制本科学历，学士学位，年龄35周岁及以下",1102101003,2,0,2]
[null,"南城县人民医院","五官科医生","临床医学（100201K）专业，全日制本科学历，学士学位，年龄35周岁及以下",1102101008,1,0,1]
[null,"南城县中医院","影像科医生","医学影像学专业(100203TK)，全日制本科学历，学士学位，年龄30周岁及以下",1102102001,2,0,2]
[null,"南城县中医院","心血管科医生","临床医学专业（100201K），全日制本科学历，学士学位，年龄25周岁及以下",1102102006,1,0,1]
[null,"南城县中医院","肾病科医生","中医学专业(100501K)，全日制本科学历,学士学位，年龄25周岁及以下",4102102007,1,0,1]
[null,"南城县中医院","儿科医生","临床医学专业（100201K），全日制本科学历，学士学位，年龄25周岁及以下",1102102008,1,0,1]
[null,"南城县中医院","儿科医生","中医学专业(100501K)，全日制本科学历，学士学位，年龄25周岁及以下",4102102009,1,0,1]
[null,"南城县中医院","卫生信息员","卫生信息管理专业（620604），全日制大专学历，年龄25周岁及以下",3102102013,1,0,1]
[null,"南城县浔溪乡卫生院","临床医师","临床医学专业（620101K），全日制大专及以上学历，年龄35周岁及以下。",1102104001,1,0,1]
["金溪县","金溪县人民医院","临床医生","临床医学专业（100201K），全日制本科学历，学士学位，年龄30周岁及以下",1102701001,6,3,3]
[null,"金溪县人民医院","中医科医生","中西医临床医学专业（100601K），全日制本科学历，学士学位，年龄30周岁及以下",5102701002,3,2,1]
[null,"金溪县人民医院","影像科医生","临床医学专业（100201K），全日制本科学历，学士学位，年龄30周岁及以下",1102701004,1,0,1]
[null,"金溪县人民医院","放射科医生","临床医学专业（100201K），全日制大专及以上学历，年龄30周岁及以下，大专学历须具备执业助理医师资格且注册为医学影像与放射治疗",1102701005,1,0,1]
[null,"金溪县人民医院","病理科医生","临床医学专业（100201K），全日制本科学历，学士学位，年龄30周岁及以下",1102701006,1,0,1]
[null,"金溪县中医院","临床科医生","临床医学专业（100201K），全日制本科学历，学士学位，年龄30周岁及以下",1102702001,5,3,2]
[null,"金溪县中医院","口腔科医生","口腔医学专业（100301K），全日制本科学历，学士学位，年龄30周岁及以下，取得执业医师资格",2102702005,2,0,2]
[null,"金溪县妇幼保健计生服务中心","临床医生","临床医学专业（620101K），全日制大专及以上学历，年龄35周岁及以下，大专学历须具备执业医师资格",1102703001,2,0,2]
[null,"金溪县妇幼保健计生服务中心","影像科医生","医学影像学专业（100203TK），全日制本科学历，学士学位，年龄35周岁及以下",1102703002,2,0,2]
[null,"金溪县疾病预防控制中心","公共预防科医生","预防医学专业（100401K），全日制本科学历，学士学位，年龄30周岁及以下",3102704001,2,0,2]
[null,"金溪县琉璃乡中心卫生院","临床医生","临床医学专业（620101K），全日制大专及以上学历，年龄35周岁及以下",1102705001,1,0,1]
[null,"金溪县琉璃乡卫计办","临床医生","临床医学专业（620101K），全日制大专及以上学历，年龄35周岁及以下",1102706001,1,0,1]
[null,"金溪县琅琚镇中心卫生院","临床医生","临床医学专业（620101K），全日制大专及以上学历，年龄35周岁及以下",1102707001,1,0,1]
[null,"金溪县何源镇中心卫生院","临床医生","临床医学专业（620101K），全日制大专及以上学历，年龄35周岁及以下",1102708001,1,0,1]
[null,"金溪县石门乡中心卫生院","临床医生","临床医学专业（620101K），全日制大专及以上学历，年龄35周岁及以下",1102709001,1,0,1]
[null,"金溪县石门乡卫计办","临床医生","临床医学专业（620101K），全日制大专及以上学历，年龄35周岁及以下",1102710001,1,0,1]
[null,"金溪县合市镇卫生院","临床医生","临床医学专业（620101K），全日制大专及以上学历，年龄35周岁及以下",1102711001,1,0,1]
[null,"金溪县合市镇卫计办","临床医生","临床医学专业（620101K），全日制大专及以上学历，年龄35周岁及以下",1102712001,1,0,1]
[null,"金溪县陈坊积乡卫生院","临床医生","临床医学专业（620101K），全日制大专及以上学历，年龄35周岁及以下",1102713001,1,0,1]
[null,"金溪县双塘镇卫生院","临床医生","临床医学专业（620101K），全日制大专及以上学历，年龄35周岁及以下",1102716001,1,0,1]
[null,"金溪县黄通乡卫计办","临床医生","临床医学专业（620101K），全日制大专及以上学历，年龄35周岁及以下",1102721001,1,0,1]
["广昌县","广昌县人民医院","妇产科医生","临床医学（100201K）专业，全日制大学本科学历，学士学位，年龄35周岁及以下",1103001002,2,1,1]
[null,"广昌县人民医院","儿科医生","临床医学（100201K）专业，全日制大学本科学历，学士学位，年龄35周岁及以下",1103001003,1,0,1]
[null,"广昌县人民医院","急诊科医生","临床医学（100201K）专业，全日制大学本科学历，学士学位，年龄35周岁及以下",1103001004,1,0,1]
[null,"广昌县人民医院","ICU医生","临床医学（100201K）专业，全日制大学本科学历，学士学位，年龄35周岁及以下",1103001005,1,0,1]
[null,"广昌县人民医院","外科医生","临床医学（100201K）专业，全日制大学本科学历，学士学位，年龄35周岁及以下",1103001006,3,2,1]
[null,"广昌县人民医院","口腔科医生","口腔医学(100301K)专业，全日制大学本科学历，学士学位，年龄35周岁及以下",2103001008,1,0,1]
[null,"广昌县人民医院","五官科医生","临床医学（100201K）专业，全日制大学本科学历，学士学位，年龄35周岁及以下",1103001009,2,1,1]
[null,"广昌县人民医院","B超室医生","临床医学（100201K）专业，全日制大学本科学历，学士学位，年龄35周岁及以下",1103001010,1,0,1]
[null,"广昌县人民医院","120出诊医生","中西医临床医学（100601K）专业，全日制大学本科学历，学士学位，年龄35周岁及以下",5103001011,3,1,2]
[null,"广昌县人民医院","病理科医生","临床医学专业（620101K），全日制大专及以上学历，35周岁及以下，具有临床执业(助理)医师资格证",1103001015,1,0,1]
[null,"广昌县中医院","心电图医生","临床医学专业（620101K），全日制大专及以上学历，年龄35周岁及以下，具有执业（助理）医师资格证",1103002003,1,0,1]
["东乡区","东乡区中医院","放射科医生","医学影像学专业（100203TK）,全日制大学本科学历，学士学位，年龄30周岁及以下，取得执业医师资格证书年龄可放宽到35周岁及以下",1100302002,1,0,1]
[null,"东乡区小璜镇中心卫生院","预防医学医生","预防医学专业（620601K）,全日制大专及以上学历，年龄30周岁及以下",3100308001,1,0,1]
[null,"东乡区瑶圩乡卫生院","临床医生","临床医学专业（620101K），全日制大专及以上学历，年龄35周岁及以下",1100309001,2,1,1]
[null,"东乡区黎圩镇虎形山卫生院","临床医生","临床医学专业（620101K）,全日制大专及以上学历，年龄35周岁及以下",1100314001,1,0,1]
["资溪县","资溪县妇幼保健和计划生育服务中心","B超室医学影像医生","临床医学专业（620101K)，全日制大专及以上学历，或医学影像学专业（100203TK），全日制大学本科学历，年龄35周岁及以下，取得执业医师资格证，执业范围为医学影像与放射治疗",1102801002,1,0,1]
[null,"资溪县人民医院","急诊科医生","临床医学专业（620101K），全日制大专及以上学历，年龄35周岁及以下，具有执业医师资格证",1102802001,2,1,1]
[null,"资溪县人民医院","妇产科医生","临床医学专业（620101K），全日制大专及以上学历，年龄35周岁及以下，具有执业医师资格证",1102802002,2,0,2]
[null,"资溪县人民医院","内科医生","临床医学专业（620101K），全日制大专及以上学历，年龄35周岁及以下，具有执业医师资格证",1102802003,2,1,1]
[null,"资溪县人民医院","ICU医生","临床医学专业（620101K），全日制大专及以上学历，年龄35周岁及以下，具有执业医师资格证",1102802004,1,0,1]
[null,"资溪县人民医院","传染科医生","临床医学专业（620101K），全日制大专及以上学历，年龄35周岁及以下，具有执业医师资格证",1102802005,1,0,1]
[null,"资溪县人民医院","儿科医生","临床医学专业（620101K），全日制大专及以上学历，年龄35周岁及以下，具有执业医师资格证",1102802006,2,0,2]
[null,"资溪县人民医院","口腔科医生","口腔医学专业（620102K），全日制大专及以上学历，年龄35周岁及以下，具有执业医师资格证",2102802007,1,0,1]
[null,"资溪县人民医院","影像科医生","临床医学专业（620101K)，全日制大专及以上学历，或医学影像学专业（100203TK），全日制大学本科学历，年龄35周岁及以下，取得执业医师资格证，执业范围为医学影像与放射治疗",1102802008,2,0,2]
[null,"资溪县人民医院","麻醉科医生","临床医学专业（620101K），全日制大专及以上学历，年龄35周岁及以下，具有执业医师资格证",1102802009,1,0,1]
[null,"资溪县人民医院","病理科医生","临床医学专业（620101K），全日制大专及以上学历，年龄35周岁及以下，具有执业医师资格证",1102802010,1,0,1]
["南昌经济技术开发区  蛟桥镇","蛟桥镇医院","公共卫生与健康医师","预防医学专业（620601K），全日制大专及以上学历，年龄35周岁及以下,取得医师执业资格。",3120001004,1,0,1]
[{"$nulls":5},{"$f":"SUM(F3:F955)","v":1529},{"$f":"SUM(G3:G955)","v":217},{"$f":"SUM(H3:H955)","v":1312}]